Workbook

Sheet Accueil

Sheet Général
D2: Nom du transporteur | G2: Responsable de la facturation | L2: Numéro de dossier
C4: Adresse | G4: Téléphone | L4: # facture
C6: Personne transportée
C7: Nom | D7: Prénom | G7: Préposés au transport
G8: Nom | J8: Prénom
C9: Coroner
C10: Nom | D10: Prénom
C13: Date et heure du départ des installations, et date et heure de l'arrivée aux installations. | G13: Départ | L13: Arrivée
F14: Date | K14: Date
G15: =IFERROR(CONCATENATE('Jours fériés'!E31," / ",'Jours fériés'!E32),"") ->  | L15: =IFERROR(CONCATENATE( 'Jours fériés'!E34," / ",'Jours fériés'!E35),"") -> 
F16: Heure | K16: Heure
C20: Transport | D20: Détails | L20: Total
C22: Tarif de base | G22: Faites un choix: | L22: =IFERROR(VLOOKUP(H22,TAUX!B24:C29,2,FALSE),0) -> 0
C24: Temps d'attente | E24: En heure | G24: En centième | H24: Taux | J24: Total
D25: S / J | E25: =IFERROR(IF('Calculs choix indemnité'!F17=2,'Calculs temps attente'!F31+'Calculs temps attente'!F32,'Calculs temps attente'!B31+'Calculs temps attente'!B32),"") ->  | G25: =IFERROR(IF('Calculs choix indemnité'!$F$17=1,'Calculs temps attente'!E31+'Calculs temps attente'!E32,IF('Calculs choix indemnité'!$F$17=2,'Calculs temps attente'!G31+'Calculs temps attente'!G32,)),"") -> 0 | H25: =TAUX!$C$6 -> 28.75 | J25: =IFERROR(H25*G25,"") -> 0
D26: S / N | E26: =IFERROR(IF('Calculs choix indemnité'!F17=2,'Calculs temps attente'!F37,'Calculs temps attente'!C37),"") ->  | G26: =IFERROR(IF('Calculs choix indemnité'!$F$17=1,'Calculs temps attente'!E37,IF('Calculs choix indemnité'!$F$17=2,'Calculs temps attente'!G37,)),"") -> 0 | H26: =TAUX!$C$7 -> 35.5 | J26: 0
D27: FDS / J | E27: =IFERROR(IF('Calculs choix indemnité'!F17=2,'Calculs temps attente'!F33+'Calculs temps attente'!F34,'Calculs temps attente'!B33+'Calculs temps attente'!B34),"") ->  | G27: =IFERROR(IF('Calculs choix indemnité'!$F$17=1,'Calculs temps attente'!E33+'Calculs temps attente'!E34,IF('Calculs choix indemnité'!$F$17=2,'Calculs temps attente'!G33+'Calculs temps attente'!G34,)),"") -> 0 | H27: =TAUX!$C$8 -> 31.75 | J27: 0
D28: FDS / N | E28: =IFERROR(IF('Calculs choix indemnité'!F17=2,'Calculs temps attente'!F38,'Calculs temps attente'!C38),"") ->  | G28: =IFERROR(IF('Calculs choix indemnité'!$F$17=1,'Calculs temps attente'!E38,IF('Calculs choix indemnité'!$F$17=2,'Calculs temps attente'!G38,)),"") -> 0 | H28: =TAUX!$C$9 -> 38.5 | J28: 0
D29: F / J | E29: =IFERROR(IF('Calculs choix indemnité'!F17=2,'Calculs temps attente'!F35+'Calculs temps attente'!F36,'Calculs temps attente'!B35+'Calculs temps attente'!B36),"") ->  | G29: =IFERROR(IF('Calculs choix indemnité'!$F$17=1,'Calculs temps attente'!E35+'Calculs temps attente'!E36,IF('Calculs choix indemnité'!$F$17=2,'Calculs temps attente'!G35+'Calculs temps attente'!G36,)),"") -> 0 | H29: =TAUX!$C$10 -> 40 | J29: 0
D30: F / N | E30: =IFERROR(IF('Calculs choix indemnité'!F17=2,'Calculs temps attente'!F39,'Calculs temps attente'!C39),"") ->  | G30: =IFERROR(IF('Calculs choix indemnité'!$F$17=1,'Calculs temps attente'!E39,IF('Calculs choix indemnité'!F17=2,'Calculs temps attente'!G39,)),"") -> 0 | H30: =TAUX!$C$11 -> 48 | J30: 0
E31: =IFERROR(E25+E26+E27+E28+E29+E30,"") ->  | G31: =SUM(G25:G30) -> 0 | J31: =SUM(J25:J30) -> 0 | L31: =J31 -> 0
C33: Temps d'attente | E33: En heure | G33: En centième | H33: Taux | J33: Total
D34: S / J | E34: =IFERROR(IF('Calculs choix indemnité'!F17=2,'Calculs temps attente'!F62+'Calculs temps attente'!F63,'Calculs temps attente'!B62+'Calculs temps attente'!B63),"") ->  | G34: =IFERROR(IF('Calculs choix indemnité'!$F$17=1,'Calculs temps attente'!E62+'Calculs temps attente'!E63,IF('Calculs choix indemnité'!$F$17=2,'Calculs temps attente'!G62+'Calculs temps attente'!G63,)),"") -> 0 | H34: =TAUX!$C$6 -> 28.75 | J34: =IFERROR(H34*G34,"") -> 0
D35: S / N | E35: =IFERROR(IF('Calculs choix indemnité'!F17=2,'Calculs temps attente'!F68,'Calculs temps attente'!C68),"") ->  | G35: =IFERROR(IF('Calculs choix indemnité'!$F$17=1,'Calculs temps attente'!E68,IF('Calculs choix indemnité'!$F$17=2,'Calculs temps attente'!G68,)),"") -> 0 | H35: =TAUX!$C$7 -> 35.5 | J35: 0
D36: FDS / J | E36: =IFERROR(IF('Calculs choix indemnité'!F17=2,'Calculs temps attente'!F64+'Calculs temps attente'!F65,'Calculs temps attente'!B64+'Calculs temps attente'!B65),"") ->  | G36: =IFERROR(IF('Calculs choix indemnité'!$F$17=1,'Calculs temps attente'!E64+'Calculs temps attente'!E65,IF('Calculs choix indemnité'!$F$17=2,'Calculs temps attente'!G64+'Calculs temps attente'!G65,)),"") -> 0 | H36: =TAUX!$C$8 -> 31.75 | J36: 0
D37: FDS / N | E37: =IFERROR(IF('Calculs choix indemnité'!F17=2,'Calculs temps attente'!F69,'Calculs temps attente'!C69),"") ->  | G37: =IFERROR(IF('Calculs choix indemnité'!$F$17=1,'Calculs temps attente'!E69,IF('Calculs choix indemnité'!$F$17=2,'Calculs temps attente'!G69,)),"") -> 0 | H37: =TAUX!$C$9 -> 38.5 | J37: 0
D38: F / J | E38: =IFERROR(IF('Calculs choix indemnité'!F17=2,'Calculs temps attente'!F66+'Calculs temps attente'!F67,'Calculs temps attente'!B66+'Calculs temps attente'!B67),"") ->  | G38: =IFERROR(IF('Calculs choix indemnité'!$F$17=1,'Calculs temps attente'!E66+'Calculs temps attente'!E67,IF('Calculs choix indemnité'!$F$17=2,'Calculs temps attente'!G66+'Calculs temps attente'!G67,)),"") -> 0 | H38: =TAUX!$C$10 -> 40 | J38: 0
D39: F / N | E39: =IFERROR(IF('Calculs choix indemnité'!F17=2,'Calculs temps attente'!F70,'Calculs temps attente'!C70),"") ->  | G39: =IFERROR(IF('Calculs choix indemnité'!$F$17=1,'Calculs temps attente'!E70,IF('Calculs choix indemnité'!F17=2,'Calculs temps attente'!G70,)),"") -> 0 | H39: =TAUX!$C$11 -> 48 | J39: 0
E40: =IFERROR(E34+E35+E36+E37+E38+E39,"") ->  | G40: =SUM(G34:G39) -> 0 | J40: =SUM(J34:J39) -> 0 | L40: =J40 -> 0
C42: Temps d'attente | E42: En heure | G42: En centième | H42: Taux | J42: Total
D43: S / J | E43: =IFERROR(IF('Calculs choix indemnité'!F17=2, 'Calculs temps attente'!F93+'Calculs temps attente'!F94, 'Calculs temps attente'!B93+'Calculs temps attente'!B94),"") ->  | G43: =IFERROR(IF('Calculs choix indemnité'!$F$17=1,'Calculs temps attente'!E93+'Calculs temps attente'!E94,IF('Calculs choix indemnité'!$F$17=2,'Calculs temps attente'!G93+'Calculs temps attente'!G94,)),"") -> 0 | H43: =TAUX!$C$6 -> 28.75 | J43: =IFERROR(H43*G43,"") -> 0
D44: S / N | E44: =IFERROR(IF('Calculs choix indemnité'!F17=2,'Calculs temps attente'!F99,'Calculs temps attente'!C99),"") ->  | G44: =IFERROR(IF('Calculs choix indemnité'!$F$17=1,'Calculs temps attente'!E99,IF('Calculs choix indemnité'!$F$17=2,'Calculs temps attente'!G99,)),"") -> 0 | H44: =TAUX!$C$7 -> 35.5 | J44: 0
D45: FDS / J | E45: =IFERROR(IF('Calculs choix indemnité'!F17=2,'Calculs temps attente'!F95+'Calculs temps attente'!F96,'Calculs temps attente'!B95+'Calculs temps attente'!B96),"") ->  | G45: =IFERROR(IF('Calculs choix indemnité'!$F$17=1,'Calculs temps attente'!E95+'Calculs temps attente'!E96,IF('Calculs choix indemnité'!$F$17=2,'Calculs temps attente'!G95+'Calculs temps attente'!G96,)),"") -> 0 | H45: =TAUX!$C$8 -> 31.75 | J45: 0
D46: FDS / N | E46: =IFERROR(IF('Calculs choix indemnité'!F17=2,'Calculs temps attente'!F100,'Calculs temps attente'!C100),"") ->  | G46: =IFERROR(IF('Calculs choix indemnité'!$F$17=1,'Calculs temps attente'!E100,IF('Calculs choix indemnité'!$F$17=2,'Calculs temps attente'!G100,)),"") -> 0 | H46: =TAUX!$C$9 -> 38.5 | J46: 0
D47: F / J | E47: =IFERROR(IF('Calculs choix indemnité'!F17=2,'Calculs temps attente'!F97+'Calculs temps attente'!F98,'Calculs temps attente'!B97+'Calculs temps attente'!B98), "") ->  | G47: =IFERROR(IF('Calculs choix indemnité'!$F$17=1,'Calculs temps attente'!E97+'Calculs temps attente'!E98,IF('Calculs choix indemnité'!$F$17=2,'Calculs temps attente'!G97+'Calculs temps attente'!G98,)),"") -> 0 | H47: =TAUX!$C$10 -> 40 | J47: 0
D48: F / N | E48: =IFERROR(IF('Calculs choix indemnité'!F17=2,'Calculs temps attente'!F101,'Calculs temps attente'!C101),"") ->  | G48: =IFERROR(IF('Calculs choix indemnité'!$F$17=1,'Calculs temps attente'!E101,IF('Calculs choix indemnité'!F17=2,'Calculs temps attente'!G101,)),"") -> 0 | H48: =TAUX!$C$11 -> 48 | J48: 0
E49: =IFERROR(E43+E44+E45+E46+E47+E48,"") ->  | G49: =SUM(G43:G48) -> 0 | J49: =SUM(J43:J48) -> 0 | L49: =J49 -> 0
J51: Total Transport | L51: =SUM(L22:L50) -> 0
C54: Autres frais | D54: Détails | J54: Tarifs | L54: Total
C56: Frais de garde | D56: =Garde!K29 -> 0 | J56: =TAUX!C36 -> 65.75 | L56: =D56*J56 -> 0
C57: Frais de visite | J57: =TAUX!C37 -> 65.75 | L57: =D57*J57 -> 0
C58: Nettoyage supplémentaire | J58: =TAUX!C38 -> 44.75 | L58: =D58*J58 -> 0
C59: Corps additionnel | J59: =TAUX!C39 -> 122 | L59: =D59*J59 -> 0
J60: Total Autres frais | L60: =SUM(L56:L59) -> 0
C64: =IFERROR("La durée du transport est de " &'Calculs choix indemnité'!$A$11 &IF('Calculs choix indemnité'!$A$10<'Calculs choix indemnité'!$A$12,". Vous pouvez demander le remboursement des repas seulement.", IF('Calculs choix indemnité'!$A$10>'Calculs choix indemnité'!$A$12,"")),"") -> 
C65: Pour les transports dont la durée est supérieure à 12 heures, le transport comprend-il un coucher ? Faites un choix dans la cellule bleue. | H65: =IF(G65="","non",G65) -> non | J65: =IF(H65="oui",1,2) -> 2 | L65: ='Calculs choix indemnité'!A10 -> 
C67: Veuillez cliquer sur le bouton Repas ou le bouton Stationnement pour en demander le remboursement.
J69: Dépenses réelles | L69: Indemnité journalière
D70: Repas: | E70: Exclus les taxes et les pourboires. | J70: =IFERROR(Repas!M42,"") -> 0
D72: Hébergement: | E72: Inclus la taxe sur l'hébergement seulement. | J72: =IFERROR( IF(OR('Calculs choix indemnité'!A10<'Calculs choix indemnité'!A12,J65=2), 0, Hébergement!F27),) -> 0
E73: =IFERROR(IF(AND(L65>='Calculs choix indemnité'!A12,J65=2,G65="non"),"Veuillez choisir la ville de votre destination",""),"") -> 
D74: Indemnité journalière: | E74: =IFERROR(IF(L74<>0,"Vous avez choisi de demander l'indemnité journalière.",IF('Calculs choix indemnité'!A10<'Calculs choix indemnité'!A12,"","Vous avez choisi de demander le remboursement des dépenses réelles.")),"") ->  | L74: =IFERROR(IF(AND(Choix!C17=1,Choix!D21="Vous devez choisir Dépenses réelles"), 0, IF(Choix!C17=1,Choix!D21,0)),0) -> 0
D76: Stationnement: | E76: Exclus les taxes. | J76: =Stationnement!D16 -> 0 | L76: =J76 -> 0
D78: Autre 1: | E78: Inscrivez les détails dans la section Commentaires. | L78: =H78 -> 0
H79: Total dépenses taxables | J79: =SUM(J70:K78) -> 0 | L79: =IF(L74=0,0,L76+L74+L78) -> 0
L81: Coûts réels
C82: Pourboires | L82: =IFERROR(Repas!M44,"") -> 0
C83: Traversier
C84: Péage
C85: Autre 2
J86: Total dépenses non taxables | L86: =SUM(L82:L85) -> 0
C89: Ces numéros sont obligatoires si vous vous servez de cette feuille comme facture. | J89: Total Transport | L89: =L51 -> 0
J90: Total Autres frais | L90: =L60 -> 0
C91: Numéro de TPS du transporteur | J91: Total Dépenses taxables remboursables | L91: =IF(L74>0,Général!L79,Général!J79) -> 0
J92: Sous-total | L92: =SUM(L89:L91) -> 0
C93: Numéro de TVQ du transporteur | H93: 0.05 | J93: TPS | L93: =L92*TAUX!C61 -> 0
H94: 0.09975 | J94: TVQ | L94: =L92*TAUX!C62 -> 0
J95: Sous-total des taxes | L95: =ROUNDUP(L93+L94,3) -> 0
J96: Total des services facturables et des dépenses taxables remboursables | L96: =L89+L90+L91+L93+L94 -> 0
J97: Total Dépenses non taxables remboursables | L97: =L86 -> 0
J98: Total des services facturables et des dépenses remboursables | L98: =L96+L97 -> 0

Sheet Rapport d'activités (hidden)
B2: Maison funéraire | K2: No dossier
B5: Personne transportée | G5: Coroner | K5: Appel
B6: Nom | E6: Prénom | G6: Nom | I6: Prénom | K6: Date | L6: Heure
E11: Préposés au transport
C12: Départ des installations | E12: Nom | G12: Prénom
B13: Date | K13: =IFERROR(CONCATENATE( 'Jours fériés'!E34," / ",'Jours fériés'!E35),"") -> 
B14: Heure
B18: Morgue Québec | C18: Morgue Montréal | E18: Hôpital | G18: Résidence privée | J18: Autre
B20: Détails: | G20: Ville: ____________________________________
E23: Biens | I23: Remise du corps
B24: Heure d'arrivée: | E24: Objets | F24: Boîte | H24: Préposé au coroner
B25: Heure de départ: | E25: Documents | F25: Sac | H25: Agent de sécurité
B26: Temps d'attente: | E26: Enveloppe 3 | F26: Autre | H26: Policier
H27: Coroner
H28: Autre
E30: Signature: ______________________________ | H30: Signature: ______________________________
B34: Morgue Québec | C34: Morgue Montréal | E34: Hôpital | G34: Résidence privée | J34: Autre
B36: Détails: | G36: Ville:
E40: Biens | I40: Remise du corps
B41: Heure d'arrivée: | E41: Objets | F41: Boîte | H41: Préposé au coroner
B42: Heure de départ: | E42: Documents | F42: Sac | H42: Agent de sécurité
B43: Temps d'attente: | E43: Enveloppe 3 | F43: Autre | H43: Policier
H44: Coroner
H45: Autre
E47: Signature: ______________________________ | H47: Signature: ______________________________
C52: Arrivée aux installations
B54: Date | E54: Heure
B58: Garde: Date: __________ Heure: __________ Date: __________ Heure: __________ Date: __________ Heure: __________
B59: Corps additionnel(s): Nom: ___________________________ Prénom: __________________________ No dossier: _______________
B60: Nettoyage supplémentaire: oui _____ non _____ Justification: ________________________________________
B61: Visites: Date: _______ Heure: _______
B62: Nom: ____________________ Prénom: __________________ Fonction: __________________________ Signature: _____________________________________
B63: Visites: Date: _______ Heure: _______
B64: Nom: ____________________ Prénom: __________________ Fonction: __________________________ Signature: _____________________________________

Sheet Informations complémentaires

Sheet Aide-mémoire hébergement repas
J2: Bureau du coroner
A3: AIDE MÉMOIRE DÉPENSES D'HÉBERGEMENT ET DE REPAS REMBOURSABLES
B6: Durée du déplacement * | D6: Coucher | F6: Repas | H6: Preuve | J6: Indemnité journalière
A8: SANS COUCHER
B9: Moins de 12 heures | D9: N/A | F9: Remboursement des dépenses réelles en fonction des montants maximums prévus | H9: Factures originales | J9: N/A
B11: Plus de 12 heures sans coucher | D11: N/A | F11: Remboursement des dépenses réelles en fonction des montants maximums prévus | H11: Preuve de déplacement à destination | I11: OU | J11: 50 % de l'indemnité journalière
A14: AVEC COUCHER
B15: Entre 12 et 18 heures avec coucher | D15: Remboursement des dépenses réelles en fonction des montants maximums prévus | F15: Remboursement des dépenses réelles en fonction des montants maximums prévus | H15: Factures d'hébergement et de repas en fonction des maximums prévus + Dates et heures de départ et d'arrivée | I15: OU | J15: 50 % de l'indemnité journalière
B17: Entre 18 et 24 avec coucher | D17: Remboursement des dépenses réelles en fonction des montants maximums prévus | F17: Remboursement des dépenses réelles en fonction des montants maximums prévus | H17: Factures d'hébergement et de repas en fonction des maximums prévus + Dates et heures de départ et d'arrivée | I17: OU | J17: 100 % de l'indemnité journalière
B19: Plus de 24 heures avec coucher | D19: Remboursement des dépenses réelles en fonction des montants maximums prévus | F19: Remboursement des dépenses réelles en fonction des montants maximums prévus | H19: Factures d'hébergement et de repas en fonction des maximums prévus + Dates et heures de départ et d'arrivée | I19: OU | J19: 100 % de l'indemnité journalière + les repas pris au-delà des 24 heures
B21: * Un déplacement débute au moment du départ des préposés au transport des installations du transporteur jusqu'au moment de leur retour aux installations du transporteur.
J22: 2021-12-15

Sheet Calendrier jours fériés
B7: Calendrier des jours fériés 2022 à 2025
B9: Événement | D9: 2022 | E9: 2023 | F9: 2024 | G9: 2025
C10: Jour de l'An | D10: samedi 1er janvier 2022 | E10: dimanche 1er janvier 2023 | F10: lundi 1er janvier 2024 | G10: mercredi 1er janvier 2025
C11: Lendemain du jour de l'An | D11: dimanche 2 janvier 2022 | E11: lundi 2 janvier 2023 | F11: mardi 2 janvier 2024 | G11: jeudi 2 janvier 2025
C12: Vendredi saint | D12: vendredi 15 avril 2022 | E12: vendredi 7 avril 2023 | F12: vendredi 29 mars 2024 | G12: vendredi 18 avril 2025
C13: Lundi de Pâques | D13: lundi 18 avril 2022 | E13: lundi 10 avril 2023 | F13: lundi 1er avril 2024 | G13: lundi 21 avril 2025
C14: Journée internationale des Patriotes | D14: lundi 23 mai 2022 | E14: lundi 22 mai 2023 | F14: lundi 20 mai 2024 | G14: lundi 19 mai 2025
C15: Fête nationale du Québec | D15: vendredi 24 juin 2022 | E15: samedi 24 juin 2023 | F15: lundi 24 juin 2024 | G15: mardii 24 juin 2025
C16: Fête du Canada | D16: vendredi 1er juillet 2022 | E16: samedi 1er juillet 2023 | F16: lundi 1er juillet 2024 | G16: mardi 1er juillet 2025
C17: Fête du Travail | D17: lundi 5 septembre 2022 | E17: lundi 4 septembre 2023 | F17: lundi 2 septembre 2024 | G17: lundi 1er septembre 2025
C18: Fête de l'Action de grâces | D18: lundi 10 octobre 2022 | E18: lundi 9 octobre 2023 | F18: lundi 14 octobre 2024 | G18: lundi 13 octobre 2025
C19: Veille de Noël | D19: samedi 24 décembre 2022 | E19: dimanche 24 décembre 2023 | F19: mardi 24 décembre 2024 | G19: mercredi 24 décembre 2025
C20: Noël | D20: dimanche 25 décembre 2022 | E20: lundi 25 décembre 2023 | F20: mercredi 25 décembre 2024 | G20: jeudi 25 décembre 2025
C21: Lendemain de Noël | D21: lundi 26 décembre 2022 | E21: mardi 26 décembre 2023 | F21: jeudi 26 décembre 2024 | G21: vendredi 26 décembre 2025
C22: Veille du Jour de l'An | D22: samedi 31 décembre 2022 | E22: dimanche 31 décembre 2023 | F22: mardi 31 décembre 2024 | G22: mercredi 31 décembre 2025
G24: Bureau du coroner décembre 2021
B25: Les jours de fête sont ceux accordés aux employés du gouvernement du Québec.

Sheet Attente (hidden)
J3: =Général!L3 -> 0
B6: Remplir les cellules jaunes seulement, au besoin.
B7: Utilisez le format aaaa-mm-jj pour les dates.
B8: Exemple: 4 mars 2021: inscrivez 2021-03-04
B9: Utilisez le format 24 heures.
B10: Exemple: 8 h 30 le matin: inscrivez 8:30 Pour minuit et 10 minutes inscrivez 0:10
D14: Début | F14: Fin | H14: Heure de fin modifiée* | J14: Coûts remboursables
B17: Lieu de l'attente 1:
J18: =IF(OR(D21="",F21=""),"Les heures doivent être inscrites","") -> Les heures doivent être inscrites
B19: Date:
B21: Heure: | H21: =IFERROR(IF('Calculs temps attente'!C16='Calculs temps attente'!C15,"",'Calculs temps attente'!C16),) -> 00:00:00 | J21: =IFERROR(IF(OR(D21="",F21=""),"",'Calculs temps attente'!H40),0) -> 
B26: Lieu de l'attente 2:
J27: =IF(OR(D30="",F30=""),"Les heures doivent être inscrites","") -> Les heures doivent être inscrites
B28: Date:
B30: Heure: | H30: =IFERROR(IF('Calculs temps attente'!C47='Calculs temps attente'!C46,"",'Calculs temps attente'!C47),) -> 00:00:00 | J30: =IFERROR(IF(OR(D30="",F30=""),"",'Calculs temps attente'!H71),0) -> 
B35: Lieu de l'attente 3:
J36: =IF(OR(D39="",F39=""),"Les heures doivent être inscrites","") -> Les heures doivent être inscrites
B37: Date:
B39: Heure: | H39: =IFERROR(IF('Calculs temps attente'!C78='Calculs temps attente'!C77,"",'Calculs temps attente'!C78),) -> 00:00:00 | J39: =IFERROR(IF(OR(D39="",F39=""),"",'Calculs temps attente'!H102),0) -> 
H43: Total | J43: =SUM(J21:J42) -> 0
B45: * Si le temps d'attente dépasse une durée de 9 h, l'heure de fin de l'attente est modifiée automatiquement pour tenir compte de ce maximum.
B47: Si aucun total ne s'inscrit à droite ou que la cellule indique ####, modifier les dates et/ou les heures ou le format des dates et/ou des heures.
B50: Commentaires:

Sheet Calculs temps attente (hidden)
C1: TEMPS D'ATTENTE
C3: Semaine / Jour_soir | D3: =TAUX!$C6 -> 28.75 | G3: NE RIEN MODIFIER DANS CE TABLEAU SOUS PEINE D'ÉLECTROCUTION
C4: Semaine / Nuit | D4: =TAUX!$C7 -> 35.5
A5: 00:00:00 | C5: Fin de semaine / Jour_soir | D5: =TAUX!$C8 -> 31.75
A6: 23:59:00 | C6: Fin de semaine / Nuit | D6: =TAUX!$C9 -> 38.5
A7: =TEXT(A6,"hh:mm") -> 23:59 | C7: Férié / Jour_soir | D7: =TAUX!$C10 -> 40
A8: =TEXT(A9,"hh:mm") -> 08:00 | C8: Férié / Nuit | D8: =TAUX!$C11 -> 48
A9: 08:00:00
A10: 1
G11: Attente 1
B13: Début | C13: Fin
A14: Date début / fin | B14: =Attente!D19 -> 00:00:00 | C14: =Attente!F19 -> 00:00:00 | D14: =TEXT(B14,"aaaa-mm-jj ")&TEXT(B15,"hh:mm") -> 1900-01-00 00:00
A15: Heure début / fin | B15: =Attente!D21 -> 00:00:00 | C15: =TEXT(Attente!F21,"hh:mm") -> 00:00 | D15: =TEXT(C14,"aaaa-mm-jj ")&TEXT(C15,"hh:mm") -> 1900-01-00 00:00 | F15: =IF(AND(B16>A8,B16<A7),B16,"") -> 
A16: Heure modifiée | B16: =TEXT(B15,"hh:mm") -> 00:00 | C16: =TEXT(IF(D16<K30,C15,B16+K30),"hh:mm") ->  | D16: =D15-D14 -> 
E20: =IF(E22>=K30,"Dépassement","") -> Dépassement | G20: =IFERROR(IF(AND(B25="oui",D15<K30),$A$10-C25,$A$10-C25),"") ->  | H20: =TEXT(IFERROR(IF(AND(C16>$A$8,B25="oui"), $A$8,E25-G25),""),"hh:mm") ->  | I20: =IFERROR(IF(AND(E25-G20-H20>0,B25="oui"),IF(C16-$A$8>0,C16-$A$8,"")),) -> 00:00:00 | J20: Semaine ou FDS | L20: Férié ou ordinaire
C21: Début | D21: Fin | E21: Durée totale | G21: Durée jour 1 | H21: Durée nuit | I21: Durée jour 2 | J21: Jour 1 | K21: Jour 2 | L21: Jour 1 | M21: Jour 2
A22: Jour + Jour | B22: =IF(C14-B14=0, "oui",IF(AND(C14-B14=1,B16+K30<=A10), "oui", "non")) -> oui | C22: =IF(AND(B16>=$A$8, B16<=$A$7, B22="oui"), B16,"") ->  | D22: =IF(C22<>"",C16,"") ->  | E22: =IF(AND(D22="",C22=""),"",IF(D22="00:00",A10-B16,D22-C22)) ->  | G22: =$E22 ->  | J22: =IFERROR(IF(VLOOKUP(B14,'Jours fériés'!$B$4:$E$1829,2,FALSE)="s","S","FDS"),0) -> 0 | L22: =IF(VLOOKUP(B14,'Jours fériés'!$B$4:$E$1829,3,FALSE)="Oui","F","") -> 
A23: Nuit+ Nuit | B23: =IF(C14-B14=0,"oui","non") -> oui | C23: =IF(AND(B16>=$A$5, C16<=$A$8, B23="oui"), B16,"") ->  | D23: =IF(C23<>"",C16,"") ->  | E23: =TEXT(IF(D23<>"",D23-C23,""),"hh:mm") ->  | H23: =TEXT($E23,"hh:mm") ->  | J23: =IF(VLOOKUP(B14,'Jours fériés'!B4:$E$1829,2,FALSE)="s","S","FDS") ->  | L23: =IF(VLOOKUP(B14,'Jours fériés'!$B$4:$E$1829,3,FALSE)="Oui","F","") -> 
A24: Nuit + Jour | B24: =IF(C14-B14=0,"oui","non") -> oui | C24: =IF(AND(B16>=$A$5, B16<A8, C16>$A$8, B24="oui"), B16,"") ->  | D24: =IF(C24<>"",C16,"") ->  | E24: =TEXT(IF(D24<>"",D24-C24,""),"hh:mm") ->  | H24: =TEXT(IF(D24<>"",$A$8-C24,""),"hh:mm") ->  | I24: =IF(E24<>"",D24-$A$8,"") ->  | J24: =IF(VLOOKUP(B14,'Jours fériés'!$B$4:$E$1829,2,FALSE)="s","S","FDS") ->  | K24: =IF(VLOOKUP(C14,'Jours fériés'!$B$4:$E$1829,2,FALSE)="s","S","FDS") ->  | L24: =IF(VLOOKUP(B14,'Jours fériés'!$B$4:$E$1829,3,FALSE)="Oui","F","") ->  | M24: =IF(VLOOKUP(C14,'Jours fériés'!$B$4:$E$1829,3,FALSE)="Oui","F","") -> 
A25: Jour + Nuit | B25: =IF(AND(C14-B14=1,B16+K30<=A10), "non",IF( C14-B14=1,"oui","non")) -> non | C25: =IF(B25="oui",B15,"") ->  | D25: =IF(C25<>"",C16,"") ->  | E25: =IF(D25<>"",($A$10-C25)+D25,"") ->  | G25: =IF(G20="","",G20) ->  | H25: =TEXT(IFERROR(IF(H20="","",H20),""),"hh:mm") ->  | I25: =IFERROR(IF(I20="","",I20),"") -> 00:00:00 | J25: =IF(VLOOKUP(B14,'Jours fériés'!$B$4:$E$1829,2,FALSE)="s","S","FDS") ->  | K25: =IF(VLOOKUP(C14,'Jours fériés'!$B$4:$E$1829,2,FALSE)="s","S","FDS") ->  | L25: =IF(VLOOKUP(B14,'Jours fériés'!$B$4:$E$1829,3,FALSE)="Oui","F","") ->  | M25: =IF(VLOOKUP(C14,'Jours fériés'!$B$4:$E$1829,3,FALSE)="Oui","F","") -> 
C26: =C25 ->  | D26: =D25 ->  | E26: =SUM(E22:E25) ->  | G26: =TEXT(IF(L33=TRUE,SUM(G22:G25),""),"hh:mm") ->  | H26: =TEXT(IF(H23<>"",H23,IF(H24<>"",H24,IF(H25<>"",H25,""))),"hh:mm") ->  | I26: =TEXT(IF(L35=TRUE,SUM(I22:I25),""),"hh:mm") -> 
B30: JOUR | C30: NUIT | D30: Taux | E30: en centièmes X 1 | F30: Heures X 2 | G30: en centièmes X 2 | H30: TOTAL | K30: 09:00:00 | M30: 09:00:00 | N30: 18:00:00
A31: Semaine jour 1 | B31: =TEXT(IF(AND(G26<>"",J25="S",L25<>"F"),G26,"0"),"hh:mm") ->  | D31: =$D$3 -> 28.75 | E31: =IF(AND(B31<>$A$5,B31<>""),ROUND(B31*24,2),) ->  | F31: =B31*'Calculs choix indemnité'!$F$17 ->  | G31: =ROUND(IF($N$33=2,(VLOOKUP(E31,équivalence,2,FALSE))),2) -> 0 | H31: =IF(AND(G31=0,$N$33=1),E31*D31,IF($N$33=2,G31*D31,)) -> 0 | M31: 09:00:00 | N31: 18:00:00 | P31: =LEFT(O31,2) -> 
A32: Semaine jour 2 | B32: =TEXT(IF(AND(I26<>"",K25="S",M25<>"F"),I26,"0"),"hh:mm") ->  | D32: =$D$3 -> 28.75 | F32: =B32*'Calculs choix indemnité'!$F$17 ->  | G32: 0 | H32: 0 | K32: Tableau Total en orange: | L32: =OR($H31<>"",$H32<>"",$H33<>"",$H34<>"",$H35<>"",$H36<>"",$H37<>"",$H38<>"",$H39<>"") -> TRUE | P32: =RIGHT(O31,2) -> 
A33: Fin de semaine jour 1 | B33: =TEXT(IF(AND(G26<>"",J25="fds",L25<>"F"),G26,"0"),"hh:mm") ->  | D33: =$D$5 -> 31.75 | F33: =B33*'Calculs choix indemnité'!$F$17 ->  | G33: 0 | H33: 0 | K33: Tableau durée jour: | L33: =OR($G22<>"",$G24<>"",$G25<>"") -> FALSE | M33: nbre préposés | N33: ='Calculs choix indemnité'!F17 -> 0
A34: Fin de semaine jour 2 | B34: =TEXT(IF(AND(I26<>"",K25="fds",M25<>"F"),I26,"0"),"hh:mm") ->  | D34: =$D$5 -> 31.75 | F34: =B34*'Calculs choix indemnité'!$F$17 ->  | G34: 0 | H34: 0 | K34: Tableau durée nuit: | L34: =OR($H22<>"",$H23<>"",$H24<>"",$H25<>"") -> 
A35: Férié jour 1 | B35: =TEXT(IF(AND(G26<>"",L25="F"),G26,"0"),"hh:mm") ->  | D35: =$D$7 -> 40 | F35: =B35*'Calculs choix indemnité'!$F$17 ->  | G35: 0 | H35: 0 | K35: Tableau durée jour 2: | L35: =OR(I23<>"",I24<>"",I25<>"") -> 
A36: Férie jour 2 | B36: =TEXT(IF(AND(I26<>"",M25="F"),I26,"0"),"hh:mm") ->  | D36: =$D$7 -> 40 | F36: =B36*'Calculs choix indemnité'!$F$17 ->  | G36: 0 | H36: 0
A37: Semaine nuit | C37: =TEXT(IF(AND(H26<>"",K25="S",M25<>"F"),H26+0,"0"),"hh:mm") ->  | D37: =$D$4 -> 35.5 | E37: =IF(C37<>"",ROUND(C37*24,2),"0") ->  | F37: =C37*'Calculs choix indemnité'!$F$17 ->  | G37: 0 | H37: 0
A38: Fin de semaine nuit | C38: =TEXT(IF(AND(H26<>"",K25="FDS",M25<>"F"),H26+0,"0"),"hh:mm") ->  | D38: =$D$6 -> 38.5 | E38: =IF(C38<>"",ROUND(C38*24,2),"0") ->  | F38: =C38*'Calculs choix indemnité'!$F$17 ->  | G38: =ROUND(IF($N$33=2,(VLOOKUP(E38,équivalence,2,FALSE))),2) -> 0 | H38: 0
A39: Férié nuit | C39: =TEXT(IF(AND(H26<>"",M25="F"),H26+0,"0"),"hh:mm") ->  | D39: =$D$8 -> 48 | E39: =IF(C39<>"",ROUND(C39*24,2),"0") ->  | F39: =C39*'Calculs choix indemnité'!$F$17 ->  | G39: =ROUND(IF($N$33=2,(VLOOKUP(E39,équivalence,2,FALSE))),2) -> 0 | H39: 0 | J39: =E39 -> 
E40: =SUM(E31:E39) ->  | F40: =SUM(F31:F39) ->  | G40: =SUM(G31:G39) -> 0 | H40: =SUM($H31:$H39) -> 0
E41: =IFERROR(E33,"non") -> non
B44: Début | C44: Fin | G44: Attente 2
A45: Date début / fin | B45: =Attente!D28 -> 00:00:00 | C45: =Attente!F28 -> 00:00:00 | D45: =TEXT(B45,"aaaa-mm-jj ")&TEXT(B46,"hh:mm") -> 1900-01-00 00:00
A46: Heure début / fin | B46: =TEXT(Attente!D30,"hh:mm") -> 00:00 | C46: =(TEXT(Attente!F30,"hh:mm")) -> 00:00 | D46: =TEXT(C45,"aaaa-mm-jj ")&TEXT(C46,"hh:mm") -> 1900-01-00 00:00
A47: Heure modifiée | B47: =TEXT(B46,"hh:mm") -> 00:00 | C47: =TEXT(IF(D47<K61,C46,B47+K61),"hh:mm") ->  | D47: =D46-D45 -> 
E51: =IF(E53>=K61,"Dépassement","") -> Dépassement | G51: =IFERROR(IF(AND(B56="oui",D47<K61),$A$10-C56,$A$10-C56),"") ->  | H51: =TEXT(IFERROR(IF(AND(C47>$A$8,B56="oui"),$A$8,E56-G56),""),"hh:mm") ->  | I51: =IFERROR(IF(AND(E56-G51-H51>0,B56="oui"),IF(C47-$A$8>0,C47-$A$8,"")),) -> 00:00:00 | J51: Semaine ou FDS | L51: Férié ou ordinaire
C52: Début | D52: Fin | E52: Durée totale | G52: Durée jour 1 | H52: Durée nuit | I52: Durée jour 2 | J52: Jour 1 | K52: Jour 2 | L52: Jour 1 | M52: Jour 2
A53: Jour + Jour | B53: =IF(C45-B45=0, "oui",IF(AND(C45-B45=1,B47+K30<=A10), "oui", "non")) -> oui | C53: =IF(AND(B47>=$A$8, B47<=$A$7, B53="oui"), B47,"") ->  | D53: =IF(C53<>"",C47,"") ->  | E53: =IF(AND(D53="",C53=""),"",IF(D53="00:00",A10-B47,D53-C53)) ->  | G53: =$E53 ->  | J53: =IFERROR(IF(VLOOKUP(B45,'Jours fériés'!$B$4:$E$1829,2,FALSE)="s","S","FDS"),0) -> 0 | L53: =IF(VLOOKUP(B45,'Jours fériés'!$B$4:$E$1829,3,FALSE)="Oui","F","") -> 
A54: Nuit+ Nuit | B54: =IF(C45-B45=0,"oui","non") -> oui | C54: =IF(AND(B47>=$A$5, C47<=$A$8, B54="oui"), B47,"") ->  | D54: =IF(C54<>"",C47,"") ->  | E54: =TEXT(IF(D54<>"",D54-C54,""),"hh:mm") ->  | H54: =TEXT($E54,"hh:mm") ->  | J54: =IF(VLOOKUP(B45,'Jours fériés'!B32:$E$1829,2,FALSE)="s","S","FDS") ->  | L54: =IF(VLOOKUP(B45,'Jours fériés'!$B$4:$E$1829,3,FALSE)="Oui","F","") -> 
A55: Nuit + Jour | B55: =IF(C45-B45=0,"oui","non") -> oui | C55: =IF(AND(B47>$A$5, C47>$A$8, B47<A8, B55="oui"), B47,"") ->  | D55: =IF(C55<>"",C47,"") ->  | E55: =TEXT(IF(D55<>"",D55-C55,""),"hh:mm") ->  | H55: =TEXT(IF(D55<>"",$A$8-C55,""),"hh:mm") ->  | I55: =IF(E55<>"",D55-$A$8,"") ->  | J55: =IF(VLOOKUP(B45,'Jours fériés'!$B$4:$E$1829,2,FALSE)="s","S","FDS") ->  | K55: =IF(VLOOKUP(C45,'Jours fériés'!$B$4:$E$1829,2,FALSE)="s","S","FDS") ->  | L55: =IF(VLOOKUP(B45,'Jours fériés'!$B$4:$E$1829,3,FALSE)="Oui","F","") ->  | M55: =IF(VLOOKUP(C45,'Jours fériés'!$B$4:$E$1829,3,FALSE)="Oui","F","") -> 
A56: Jour + Nuit | B56: =IF(AND(C45-B45=1,B47+K30<=A10), "non", IF(C45-B45=1,"oui","non")) -> non | C56: =IF(B56="oui",B46,"") ->  | D56: =IF(C56<>"",C47,"") ->  | E56: =IF(D56<>"",($A$10-C56)+D56,"") ->  | G56: =IF(G51="","",G51) ->  | H56: =TEXT(IFERROR(IF(H51="","",H51),""),"hh:mm") ->  | I56: =IFERROR(IF(I51="","",I51),"") -> 00:00:00 | J56: =IF(VLOOKUP(B45,'Jours fériés'!$B$4:$E$1829,2,FALSE)="s","S","FDS") ->  | K56: =IF(VLOOKUP(C45,'Jours fériés'!$B$4:$E$1829,2,FALSE)="s","S","FDS") ->  | L56: =IF(VLOOKUP(B45,'Jours fériés'!$B$4:$E$1829,3,FALSE)="Oui","F","") ->  | M56: =IF(VLOOKUP(C45,'Jours fériés'!$B$4:$E$1829,3,FALSE)="Oui","F","") -> 
C57: =C56 ->  | D57: =D56 ->  | E57: =SUM(E53:E56) ->  | G57: =TEXT(IF(L64=TRUE,SUM(G53:G56),""),"hh:mm") ->  | H57: =IF(H54<>"",H54,IF(H55<>"",H55,IF(H56<>"",H56,""))) ->  | I57: =TEXT(IF(L66=TRUE,SUM(I53:I56),""),"hh:mm") -> 
B61: JOUR | C61: NUIT | D61: Taux | E61: en centièmes X 1 | F61: Heures X 2 | G61: en centièmes X 2 | H61: TOTAL | K61: 09:00:00 | M61: 09:00:00 | N61: 18:00:00
A62: Semaine jour 1 | B62: =TEXT(IF(AND(G57<>"",J56="S",L56<>"F"),G57,"0"),"hh:mm") ->  | D62: =$D$3 -> 28.75 | E62: =IF(AND(B62<>$A$5,B62<>""),ROUND(B62*24,2),) ->  | F62: =B62*'Calculs choix indemnité'!$F$17 ->  | G62: =ROUND(IF($N$33=2,(VLOOKUP(E62,équivalence,2,FALSE))),2) -> 0 | H62: =IF(AND(G62=0,$N$33=1),E62*D62,IF($N$33=2,G62*D62,)) -> 0 | M62: 09:00:00 | N62: 18:00:00
A63: Semaine jour 2 | B63: =TEXT(IF(AND(I57<>"",K56="S",M56<>"F"),I57,"0"),"hh:mm") ->  | D63: =$D$3 -> 28.75 | F63: =B63*'Calculs choix indemnité'!$F$17 ->  | G63: 0 | H63: 0 | K63: Tableau Total en orange: | L63: =OR($H62<>"",$H63<>"",$H64<>"",$H65<>"",$H66<>"",$H67<>"",$H68<>"",$H69<>"",$H70<>"") -> TRUE
A64: Fin de semaine jour 1 | B64: =TEXT(IF(AND(G57<>"",J56="fds",L56<>"F"),G57,"0"),"hh:mm") ->  | D64: =$D$5 -> 31.75 | F64: =B64*'Calculs choix indemnité'!$F$17 ->  | G64: 0 | H64: 0 | K64: Tableau durée jour: | L64: =OR($G53<>"",$G55<>"",$G56<>"") -> FALSE | M64: nbre préposés | N64: ='Calculs choix indemnité'!F17 -> 0
A65: Fin de semaine jour 2 | B65: =TEXT(IF(AND(I57<>"",K56="fds",M56<>"F"),I57,"0"),"hh:mm") ->  | D65: =$D$5 -> 31.75 | F65: =B65*'Calculs choix indemnité'!$F$17 ->  | G65: 0 | H65: 0 | K65: Tableau durée nuit: | L65: =OR($H53<>"",$H54<>"",$H55<>"",$H56<>"") -> 
A66: Férié jour 1 | B66: =TEXT(IF(AND(G57<>"",L56="F"),G57,"0"),"hh:mm") ->  | D66: =$D$7 -> 40 | F66: =B66*'Calculs choix indemnité'!$F$17 ->  | G66: 0 | H66: 0 | K66: Tableau durée jour 2: | L66: =OR(I54<>"",I55<>"",I56<>"") -> 
A67: Férie jour 2 | B67: =TEXT(IF(AND(I57<>"",M56="F"),I57,"0"),"hh:mm") ->  | D67: =$D$7 -> 40 | F67: =B67*'Calculs choix indemnité'!$F$17 ->  | G67: 0 | H67: 0
A68: Semaine nuit | C68: =TEXT(IF(AND(H57<>"",K56="S",M56<>"F"),H57+0,"0"),"hh:mm") ->  | D68: =$D$4 -> 35.5 | E68: =IF(C68<>"",ROUND(C68*24,2),"0") ->  | F68: =C68*'Calculs choix indemnité'!$F$17 ->  | G68: 0 | H68: 0
A69: Fin de semaine nuit | C69: =TEXT(IF(AND(H57<>"",K56="FDS",M56<>"F"),H57+0,"0"),"hh:mm") ->  | D69: =$D$6 -> 38.5 | E69: =IF(C69<>"",ROUND(C69*24,2),"0") ->  | F69: =C69*'Calculs choix indemnité'!$F$17 ->  | G69: 0 | H69: 0
A70: Férié nuit | C70: =TEXT(IF(AND(H57<>"",M56="F"),H57+0,"0"),"hh:mm") ->  | D70: =$D$8 -> 48 | E70: =IF(C70<>"",ROUND(C70*24,2),"0") ->  | F70: =C70*'Calculs choix indemnité'!$F$17 ->  | G70: 0 | H70: 0
D71: Pour 1 préposé | E71: =SUM(E62:E70) ->  | F71: =SUM(F62:F70) ->  | G71: =SUM(G62:G70) -> 0 | H71: =SUM($H62:$H70) -> 0
B75: Début | C75: Fin | G75: Attente 3
A76: Date début / fin | B76: =Attente!D37 -> 00:00:00 | C76: =Attente!F37 -> 00:00:00 | D76: =TEXT(B76,"aaaa-mm-jj ")&TEXT(B77,"hh:mm") -> 1900-01-00 00:00
A77: Heure début / fin | B77: =TEXT(Attente!D39,"hh:mm") -> 00:00 | C77: =(TEXT(Attente!F39,"hh:mm")) -> 00:00 | D77: =TEXT(C76,"aaaa-mm-jj ")&TEXT(C77,"hh:mm") -> 1900-01-00 00:00
A78: Heure modifiée | B78: =TEXT(B77,"hh:mm") -> 00:00 | C78: =TEXT(IF(D78<K92,C77,B78+K92),"hh:mm") ->  | D78: =D77-D76 -> 
E82: =IF(E84>=K92,"Dépassement","") -> Dépassement | G82: =IFERROR(IF(AND(B87="oui",D78<K92),$A$10-C87,$A$10-C87),"") ->  | H82: =TEXT(IFERROR(IF(AND(C78>$A$8,B87="oui"),$A$8,E87-G87),""),"hh:mm") ->  | I82: =IFERROR(IF(AND(E87-G82-H82>0,B87="oui"),IF(C78-$A$8>0,C78-$A$8,"")),) -> 00:00:00 | J82: Semaine ou FDS | L82: Férié ou ordinaire
C83: Début | D83: Fin | E83: Durée totale | G83: Durée jour 1 | H83: Durée nuit | I83: Durée jour 2 | J83: Jour 1 | K83: Jour 2 | L83: Jour 1 | M83: Jour 2
A84: Jour + Jour | B84: =IF(C76-B76=0, "oui",IF(AND(C76-B76=1,B78+K30<=A10), "oui", "non")) -> oui | C84: =IF(AND(B78>=$A$8,B78<=$A$7,B84="oui"),B78,"") ->  | D84: =IF(C84<>"",C78,"") ->  | E84: =IF(AND(D84="",C84=""),"",IF(D84="00:00",A10-B78,D84-C84)) ->  | G84: =$E84 ->  | J84: =IFERROR(IF(VLOOKUP(B76,'Jours fériés'!$B$4:$E$1829,2,FALSE)="s","S","FDS"),0) -> 0 | L84: =IF(VLOOKUP(B76,'Jours fériés'!$B$4:$E$1829,3,FALSE)="Oui","F","") -> 
A85: Nuit+ Nuit | B85: =IF(C76-B76=0,"oui","non") -> oui | C85: =IF(AND(B78>=$A$5,C78<=$A$8,B85="oui"),B78,"") ->  | D85: =IF(C85<>"",C78,"") ->  | E85: =TEXT(IF(D85<>"",D85-C85,""),"hh:mm") ->  | H85: =TEXT($E85,"hh:mm") ->  | J85: =IF(VLOOKUP(B76,'Jours fériés'!B63:$E$1829,2,FALSE)="s","S","FDS") ->  | L85: =IF(VLOOKUP(B76,'Jours fériés'!$B$4:$E$1829,3,FALSE)="Oui","F","") -> 
A86: Nuit + Jour | B86: =IF(C76-B76=0,"oui","non") -> oui | C86: =IF(AND(B78>$A$5, C78>$A$8, B78<A8, B86="oui"),B78,"") ->  | D86: =IF(C86<>"",C78,"") ->  | E86: =TEXT(IF(D86<>"",D86-C86,""),"hh:mm") ->  | H86: =TEXT(IF(D86<>"",$A$8-C86,""),"hh:mm") ->  | I86: =IF(E86<>"",D86-$A$8,"") ->  | J86: =IF(VLOOKUP(B76,'Jours fériés'!$B$4:$E$1829,2,FALSE)="s","S","FDS") ->  | K86: =IF(VLOOKUP(C76,'Jours fériés'!$B$4:$E$1829,2,FALSE)="s","S","FDS") ->  | L86: =IF(VLOOKUP(B76,'Jours fériés'!$B$4:$E$1829,3,FALSE)="Oui","F","") ->  | M86: =IF(VLOOKUP(C76,'Jours fériés'!$B$4:$E$1829,3,FALSE)="Oui","F","") -> 
A87: Jour + Nuit | B87: =IF(AND(C76-B76=1,B78+K30<=A10), "non",IF(C76-B76=1,"oui","non")) -> non | C87: =IF(B87="oui",B77,"") ->  | D87: =IF(C87<>"",C78,"") ->  | E87: =IF(D87<>"",($A$10-C87)+D87,"") ->  | G87: =IF(G82="","",G82) ->  | H87: =TEXT(IFERROR(IF(H82="","",H82),""),"hh:mm") ->  | I87: =IFERROR(IF(I82="","",I82),"") -> 00:00:00 | J87: =IF(VLOOKUP(B76,'Jours fériés'!$B$4:$E$1829,2,FALSE)="s","S","FDS") ->  | K87: =IF(VLOOKUP(C76,'Jours fériés'!$B$4:$E$1829,2,FALSE)="s","S","FDS") ->  | L87: =IF(VLOOKUP(B76,'Jours fériés'!$B$4:$E$1829,3,FALSE)="Oui","F","") ->  | M87: =IF(VLOOKUP(C76,'Jours fériés'!$B$4:$E$1829,3,FALSE)="Oui","F","") -> 
C88: =C87 ->  | D88: =D87 ->  | E88: =SUM(E84:E87) ->  | G88: =TEXT(IF(L95=TRUE,SUM(G84:G87),""),"hh:mm") ->  | H88: =IF(H85<>"",H85,IF(H86<>"",H86,IF(H87<>"",H87,""))) ->  | I88: =TEXT(IF(L97=TRUE,SUM(I84:I87),""),"hh:mm") -> 
B92: JOUR | C92: NUIT | D92: Taux | E92: en centièmes X 1 | F92: Heures X 2 | G92: en centièmes X 2 | H92: TOTAL | K92: 09:00:00 | M92: 09:00:00 | N92: 18:00:00
A93: Semaine jour 1 | B93: =TEXT(IF(AND(G88<>"",J87="S",L87<>"F"),G88,"0"),"hh:mm") ->  | D93: =$D$3 -> 28.75 | E93: =IF(AND(B93<>$A$5,B93<>""),ROUND(B93*24,2),) ->  | F93: =B93*'Calculs choix indemnité'!$F$17 ->  | G93: =ROUND(IF($N$33=2,(VLOOKUP(E93,équivalence,2,FALSE))),2) -> 0 | H93: =IF(AND(G93=0,$N$33=1),E93*D93,IF($N$33=2,G93*D93,)) -> 0 | M93: 09:00:00 | N93: 18:00:00
A94: Semaine jour 2 | B94: =TEXT(IF(AND(I88<>"",K87="S",M87<>"F"),I88,"0"),"hh:mm") ->  | D94: =$D$3 -> 28.75 | F94: =B94*'Calculs choix indemnité'!$F$17 ->  | G94: 0 | H94: 0 | K94: Tableau Total en orange: | L94: =OR($H93<>"",$H94<>"",$H95<>"",$H96<>"",$H97<>"",$H98<>"",$H99<>"",$H100<>"",$H101<>"") -> TRUE
A95: Fin de semaine jour 1 | B95: =TEXT(IF(AND(G88<>"",J87="fds",L87<>"F"),G88,"0"),"hh:mm") ->  | D95: =$D$5 -> 31.75 | F95: =B95*'Calculs choix indemnité'!$F$17 ->  | G95: 0 | H95: 0 | K95: Tableau durée jour: | L95: =OR($G84<>"",$G86<>"",$G87<>"") -> FALSE | M95: nbre préposés | N95: ='Calculs choix indemnité'!F48 -> 0
A96: Fin de semaine jour 2 | B96: =TEXT(IF(AND(I88<>"",K87="fds",M87<>"F"),I88,"0"),"hh:mm") ->  | D96: =$D$5 -> 31.75 | F96: =B96*'Calculs choix indemnité'!$F$17 ->  | G96: 0 | H96: 0 | K96: Tableau durée nuit: | L96: =OR($H84<>"",$H85<>"",$H86<>"",$H87<>"") -> 
A97: Férié jour 1 | B97: =TEXT(IF(AND(G88<>"",L87="F"),G88,"0"),"hh:mm") ->  | D97: =$D$7 -> 40 | F97: =B97*'Calculs choix indemnité'!$F$17 ->  | G97: 0 | H97: 0 | K97: Tableau durée jour 2: | L97: =OR(I85<>"",I86<>"",I87<>"") -> 
A98: Férie jour 2 | B98: =TEXT(IF(AND(I88<>"",M87="F"),I88,"0"),"hh:mm") ->  | D98: =$D$7 -> 40 | F98: =B98*'Calculs choix indemnité'!$F$17 ->  | G98: 0 | H98: 0
A99: Semaine nuit | C99: =TEXT(IF(AND(H88<>"",K87="S",M87<>"F"),H88+0,"0"),"hh:mm") ->  | D99: =$D$4 -> 35.5 | E99: =IF(C99<>"",ROUND(C99*24,2),"0") ->  | F99: =C99*'Calculs choix indemnité'!$F$17 ->  | G99: 0 | H99: 0
A100: Fin de semaine nuit | C100: =TEXT(IF(AND(H88<>"",K87="FDS",M87<>"F"),H88+0,"0"),"hh:mm") ->  | D100: =$D$6 -> 38.5 | E100: =IF(C100<>"",ROUND(C100*24,2),"0") ->  | F100: =C100*'Calculs choix indemnité'!$F$17 ->  | G100: 0 | H100: 0
A101: Férié nuit | C101: =TEXT(IF(AND(H88<>"",M87="F"),H88+0,"0"),"hh:mm") ->  | D101: =$D$8 -> 48 | E101: =IF(C101<>"",ROUND(C101*24,2),"0") ->  | F101: =C101*'Calculs choix indemnité'!$F$17 ->  | G101: 0 | H101: 0
B102: =SUM(B93:B101) ->  | C102: =SUM(C93:C101) ->  | E102: =SUM(E93:E101) ->  | F102: =SUM(F93:F101) ->  | G102: =SUM(G93:G101) -> 0 | H102: =SUM($H93:$H101) -> 0
D107: 07:35:00
D108: =D107*2 -> 0.6319444444
D109: =D108*24 -> 15.16666667
D110: 14:00:00
D111: =D110*24 -> 14

Sheet Calculs choix indemnité (hidden)
A3: NE RIEN MODIFIER DANS CE TABLEAU SOUS PEINE D'ÉLECTROCUTION
C5: 1er trsp
A7: =IF(Général!$G$14="","",(TEXT(Général!$G$14,"aaaa-mm-jj"))) ->  | B7: =IF(Général!$L$14="","",TEXT(Général!$L$14,"aaaa-mm-jj")) -> 
A8: =IF(Général!$G$16="","",TEXT(Général!$G$16,"hh:mm")) ->  | B8: =IF(Général!$L$16="","",TEXT(Général!$L$16,"hh:mm")) ->  | C8: =B9-A9 -> 
A9: =A7&" "&A8 ->  | B9: =B7&" "&B8 -> 
A10: =B9-A9 ->  | B10: =IF(A10<A12,A21,IF(AND(A10>=A12,Hébergement!D17=""),A22,IF(A10<A13,A23,IF(A10<A14,A24,IF(A10>A14,A25))))) ->  | D10: Inscrivez d'abord les dépenses réelles dans Repas et Stationnement. Choisissez ensuite la ville de votre destination. Enfin, utilisez le bouton Choix pour effectuer un choix entre l'indemnité journalière ou les dépenses réelles.
A11: =TEXT(B9-A9,"[hh]:mm") ->  | B11: et comprend un coucher. | D11: Inscrivez d'abord les dépenses réelles dans Repas, Hébergement et Stationnement. Utilisez ensuite le bouton Choix pour effectuer un choix entre l'indemnité journalière ou les dépenses réelles.
A12: 12:00:00 | B12: et ne comprend pas de coucher.
A13: 0.75
A14: 1
A15: choisi dans Hébergement | B15: choisi dans Hébergement | C15: pour faciliter l'indexation | D15: Indemnité de 50 % | E15: Indemnité de 100 % | F15: nombre de préposés
A16: =Hébergement!D17 -> 0 | B16: =Hébergement!D19 -> 0 | C16: =IF($B16="entre le 1er juillet et le 31 octobre","haute saison","basse saison") -> basse saison | D16: =INDEX(TAUX!$G$50:$H$58,MATCH($A16,TAUX!$F$50:$F$58,0),MATCH($C16,TAUX!$G$49:$H$49,0)) -> 
A17: =Hébergement!D17 -> 0 | B17: =Hébergement!D19 -> 0 | C17: =IF($B17="entre le 1er juillet et le 31 octobre","haute saison","basse saison") -> basse saison | E17: =INDEX(TAUX!$C$50:$D$58,MATCH($A17,TAUX!$B$50:$B$58,0),MATCH($C17,TAUX!$C$49:$D$49,0)) ->  | F17: =Divers!$H$20 -> 0
A18: =B10 -> 
C19: Vous pouvez choisir de demander le remboursement des dépenses réelles ou une indemnité journalière. Inscrivez d'abord le coût des repas via le bouton Repas et le coût de l'hébergement via le bouton Hébergement. Effectuez ensuite votre choix via le bouton Choix.
A21: est inférieure à 12 heures | C21: La durée du transport est inférieure à 12 heures. | G21: La durée du transport est inférieure à 12 heures.
A22: est supérieure à 12 heures | C22: La durée du transport est supérieure à 12 heures et ne comprend pas de coucher. | G22: La durée du transport est supérieure à 12 heures
A23: se situe entre 12 et 18 heures | C23: La durée du transport se situe entre 12 et 18 heures et comprend un coucher. | G23: La durée du transport se situe entre 12 et 18 heures
A24: se situe entre 18 et 24 heures | C24: La durée du transport se situe entre 18 et 24 heures et comprend un coucher. | G24: La durée du transport se situe entre 18 et 24 heures
A25: est supérieure à 24 heures | C25: La durée du transport est supérieure à 24 heures et comprend un coucher. | G25: La durée du transport est supérieure à 24 heures
A27: Vous ne pouvez pas demander le remboursement des frais d'hébergement, par contre, vous avez droit au remboursement repas, s'il y a lieu.
A28: Vous avez droit de demander le remboursement des frais d'hébergement et des repas, s'il y a lieu.
A30: Vous ne pouvez pas demander le remboursement des frais d'hébergement. Veuillez choisir NON s.v.p.!
A33: Vous n'avez pas droit à une indemnité journalière et devez demander le remboursement de vos dépenses relles pour les repas, s'il y a lieu, sur présentation de factures originales.
A34: Vous pouvez choisir de demander 50 % de l'indemnité journalière prévue sans présentation de factures ou le remboursement des dépenses réelles sur présentation des factures originales.
A35: Vous pouvez choisir de demander 100 % de l'indemnité journalière prévue sans présentation de factures ou le remboursement des dépenses réelles sur présentation des factures originales.
A36: Vous pouvez choisir de demander 100 % de l'indemnité journalière prévue + les repas supplémentaires pris au-delà des 24 heures sans présentation de factures ou le remboursement des dépenses réelles sur présentation des factures originales.
A37: 50 % de l'indemnité prévue
A38: 100 % de l'indemnité prévue + les repas pris au-delà de la période de 24 heures.

Sheet Divers (hidden)
H2: Non
C3: Pour calculer les frais de garde | F3: Période de coucher | H3: Oui
F5: Entre le 1er juillet et le 31 octobre
C6: Cumulatif période de garde de 24 heures | F6: Entre le 1er novembre et le 30 juin
B7: 1 jour | C7: 1 | G7: Entre le 1er novembre et le 30 juin | H7: entre le 1er juillet et le 31 octobre
B8: 2 jours | C8: 2 | F8: Montréal | G8: =TAUX!C50 -> 218 | H8: =TAUX!D50 -> 234
B9: 3 jours | C9: 3 | F9: Québec | G9: =TAUX!C51 -> 192 | H9: =TAUX!D51 -> 192
B10: 4 jours | C10: 4 | F10: Laval | G10: =TAUX!C52 -> 187 | H10: =TAUX!D52 -> 197
B11: 5 jours | C11: 5 | F11: Gatineau | G11: =TAUX!C53 -> 187 | H11: =TAUX!D53 -> 197
B12: 6 jours | C12: 6 | F12: Longueuil | G12: =TAUX!C54 -> 187 | H12: =TAUX!D54 -> 197
B13: 7 jours | C13: 7 | F13: Lac-Beauport | G13: =TAUX!C55 -> 187 | H13: =TAUX!D55 -> 197
B14: 8 jours | C14: 8 | F14: Lac-Delage | G14: =TAUX!C56 -> 187 | H14: =TAUX!D56 -> 197
B15: 9 jours | C15: 9 | F15: Rimouski | G15: =TAUX!C57 -> 163 | H15: =TAUX!D57 -> 168
B16: 10 jours | C16: 10 | F16: Ailleurs | G16: =TAUX!C58 -> 163 | H16: =TAUX!D58 -> 168
B17: 11 jours | C17: 11
G18: 1er préposé | H18: =IFERROR(IF(Général!$G9<>"",1),"") -> FALSE
B19: ATTENTION: | G19: 2e préposé | H19: =IFERROR(IF(Général!$G10<>"",1),"") -> FALSE
G20: Total nombre de préposés | H20: =H18+H19 -> 0
B21: NE RIEN MODIFIER DANS CE TABLEAU.
B22: TOUTES LES DES DONNÉES PROVIENNENT DE L'ONGLET TAUX.
B23: SI CHANGEMENT DES TARIFS MAXIMUMS, FAIRE LES MODIFICATIONS DANS ONGLET TAUX | H23: =IFERROR(IF(Général!G9:J9<>"",1),"") -> FALSE
B28: 1 préposé en minutes | C28: 1 préposé en centièmes | D28: 2 préposés en centièmes | E28: 2 préposés en minutes
B29: 00:00:00 | C29: 0 | D29: =E29*24 -> 0 | E29: =B29*2 -> 00:00:00
B30: 00:01:00 | C30: 0.02 | D30: 0.03333333333 | E30: 00:02:00
B31: 00:02:00 | C31: 0.03 | D31: 0.06666666667 | E31: 00:04:00
B32: 00:03:00 | C32: 0.05 | D32: 0.1 | E32: 00:06:00
B33: 00:04:00 | C33: 0.07 | D33: 0.1333333333 | E33: 00:08:00
B34: 00:05:00 | C34: 0.08 | D34: 0.1666666667 | E34: 00:10:00
B35: 00:06:00 | C35: 0.1 | D35: 0.2 | E35: 00:12:00
B36: 00:07:00 | C36: 0.12 | D36: 0.2333333333 | E36: 00:14:00
B37: 00:08:00 | C37: 0.13 | D37: 0.2666666667 | E37: 00:16:00
B38: 00:09:00 | C38: 0.15 | D38: 0.3 | E38: 00:18:00
B39: 00:10:00 | C39: 0.17 | D39: 0.3333333333 | E39: 00:20:00
B40: 00:11:00 | C40: 0.18 | D40: 0.3666666667 | E40: 00:22:00
B41: 00:12:00 | C41: 0.2 | D41: 0.4 | E41: 00:24:00
B42: 00:13:00 | C42: 0.22 | D42: 0.4333333333 | E42: 00:26:00
B43: 00:14:00 | C43: 0.23 | D43: 0.4666666667 | E43: 00:28:00
B44: 00:15:00 | C44: 0.25 | D44: 0.5 | E44: 00:30:00
B45: 00:16:00 | C45: 0.27 | D45: 0.5333333333 | E45: 00:32:00
B46: 00:17:00 | C46: 0.28 | D46: 0.5666666667 | E46: 00:34:00
B47: 00:18:00 | C47: 0.3 | D47: 0.6 | E47: 00:36:00
B48: 00:19:00 | C48: 0.32 | D48: 0.6333333333 | E48: 00:38:00
B49: 00:20:00 | C49: 0.33 | D49: 0.6666666667 | E49: 00:40:00
B50: 00:21:00 | C50: 0.35 | D50: 0.7 | E50: 00:42:00
B51: 00:22:00 | C51: 0.37 | D51: 0.7333333333 | E51: 00:44:00
B52: 00:23:00 | C52: 0.38 | D52: 0.7666666667 | E52: 00:46:00
B53: 00:24:00 | C53: 0.4 | D53: 0.8 | E53: 00:48:00
B54: 00:25:00 | C54: 0.42 | D54: 0.8333333333 | E54: 00:50:00
B55: 00:26:00 | C55: 0.43 | D55: 0.8666666667 | E55: 00:52:00
B56: 00:27:00 | C56: 0.45 | D56: 0.9 | E56: 00:54:00
B57: 00:28:00 | C57: 0.47 | D57: 0.9333333333 | E57: 00:56:00
B58: 00:29:00 | C58: 0.48 | D58: 0.9666666667 | E58: 00:58:00
B59: 00:30:00 | C59: 0.5 | D59: 1 | E59: 01:00:00
B60: 00:31:00 | C60: 0.52 | D60: 1.033333333 | E60: 01:02:00
B61: 00:32:00 | C61: 0.53 | D61: 1.066666667 | E61: 01:04:00
B62: 00:33:00 | C62: 0.55 | D62: 1.1 | E62: 01:06:00
B63: 00:34:00 | C63: 0.57 | D63: 1.133333333 | E63: 01:08:00
B64: 00:35:00 | C64: 0.58 | D64: 1.166666667 | E64: 01:10:00
B65: 00:36:00 | C65: 0.6 | D65: 1.2 | E65: 01:12:00
B66: 00:37:00 | C66: 0.62 | D66: 1.233333333 | E66: 01:14:00
B67: 00:38:00 | C67: 0.63 | D67: 1.266666667 | E67: 01:16:00
B68: 00:39:00 | C68: 0.65 | D68: 1.3 | E68: 01:18:00
B69: 00:40:00 | C69: 0.67 | D69: 1.333333333 | E69: 01:20:00
B70: 00:41:00 | C70: 0.68 | D70: 1.366666667 | E70: 01:22:00
B71: 00:42:00 | C71: 0.7 | D71: 1.4 | E71: 01:24:00
B72: 00:43:00 | C72: 0.72 | D72: 1.433333333 | E72: 01:26:00
B73: 00:44:00 | C73: 0.73 | D73: 1.466666667 | E73: 01:28:00
B74: 00:45:00 | C74: 0.75 | D74: 1.5 | E74: 01:30:00
B75: 00:46:00 | C75: 0.77 | D75: 1.533333333 | E75: 01:32:00
B76: 00:47:00 | C76: 0.78 | D76: 1.566666667 | E76: 01:34:00
B77: 00:48:00 | C77: 0.8 | D77: 1.6 | E77: 01:36:00
B78: 00:49:00 | C78: 0.82 | D78: 1.633333333 | E78: 01:38:00
A79: =TEXT(B79,"hh:mm") -> 00:50 | B79: 00:50:00 | C79: 0.83 | D79: 1.666666667 | E79: 01:40:00
B80: 00:51:00 | C80: 0.85 | D80: 1.7 | E80: =B80*2 -> 01:42:00
B81: 00:52:00 | C81: 0.87 | D81: 1.733333333 | E81: 01:44:00
B82: 00:53:00 | C82: 0.88 | D82: 1.766666667 | E82: 01:46:00
B83: 00:54:00 | C83: 0.9 | D83: 1.8 | E83: 01:48:00
B84: 00:55:00 | C84: 0.92 | D84: 1.833333333 | E84: 01:50:00
B85: 00:56:00 | C85: 0.93 | D85: 1.866666667 | E85: =B85*2 -> 01:52:00
B86: 00:57:00 | C86: 0.95 | D86: 1.9 | E86: 01:54:00
B87: 00:58:00 | C87: 0.97 | D87: 1.933333333 | E87: 01:56:00
B88: 00:59:00 | C88: 0.98 | D88: 1.966666667 | E88: 01:58:00
B89: 01:00:00 | C89: 1 | D89: 2 | E89: 02:00:00
B90: 01:01:00 | C90: =1+C30 -> 1.02 | D90: 2.033333333 | E90: 02:02:00
B91: 01:02:00 | C91: =1+C31 -> 1.03 | D91: 2.066666667 | E91: =B91*2 -> 02:04:00
B92: 01:03:00 | C92: =1+C32 -> 1.05 | D92: 2.1 | E92: 02:06:00
B93: 01:04:00 | C93: 1.07 | D93: =E93*24 -> 2.133333333 | E93: 02:08:00
B94: 01:05:00 | C94: 1.08 | D94: 2.166666667 | E94: 02:10:00
B95: 01:06:00 | C95: 1.1 | D95: 2.2 | E95: 02:12:00
B96: 01:07:00 | C96: 1.12 | D96: 2.233333333 | E96: 02:14:00
B97: 01:08:00 | C97: 1.13 | D97: 2.266666667 | E97: 02:16:00
B98: 01:09:00 | C98: 1.15 | D98: 2.3 | E98: 02:18:00
B99: 01:10:00 | C99: 1.17 | D99: 2.333333333 | E99: 02:20:00
B100: 01:11:00 | C100: 1.18 | D100: 2.366666667 | E100: 02:22:00
B101: 01:12:00 | C101: 1.2 | D101: 2.4 | E101: 02:24:00
B102: 01:13:00 | C102: 1.22 | D102: 2.433333333 | E102: 02:26:00
B103: 01:14:00 | C103: 1.23 | D103: 2.466666667 | E103: 02:28:00
B104: 01:15:00 | C104: 1.25 | D104: 2.5 | E104: 02:30:00
B105: 01:16:00 | C105: 1.27 | D105: 2.533333333 | E105: 02:32:00
B106: 01:17:00 | C106: 1.28 | D106: 2.566666667 | E106: 02:34:00
B107: 01:18:00 | C107: 1.3 | D107: 2.6 | E107: 02:36:00
B108: 01:19:00 | C108: 1.32 | D108: 2.633333333 | E108: 02:38:00
B109: 01:20:00 | C109: 1.33 | D109: 2.666666667 | E109: 02:40:00
B110: 01:21:00 | C110: 1.35 | D110: 2.7 | E110: 02:42:00
B111: 01:22:00 | C111: 1.37 | D111: 2.733333333 | E111: 02:44:00
B112: 01:23:00 | C112: 1.38 | D112: 2.766666667 | E112: 02:46:00
B113: 01:24:00 | C113: 1.4 | D113: 2.8 | E113: 02:48:00
B114: 01:25:00 | C114: 1.42 | D114: 2.833333333 | E114: 02:50:00
B115: 01:26:00 | C115: 1.43 | D115: 2.866666667 | E115: 02:52:00
B116: 01:27:00 | C116: 1.45 | D116: 2.9 | E116: 02:54:00
B117: 01:28:00 | C117: 1.47 | D117: 2.933333333 | E117: 02:56:00
B118: 01:29:00 | C118: 1.48 | D118: 2.966666667 | E118: 02:58:00
B119: 01:30:00 | C119: 1.5 | D119: 3 | E119: 03:00:00
B120: 01:31:00 | C120: 1.52 | D120: 3.033333333 | E120: 03:02:00
B121: 01:32:00 | C121: 1.53 | D121: 3.066666667 | E121: 03:04:00
B122: 01:33:00 | C122: 1.55 | D122: 3.1 | E122: 03:06:00
B123: 01:34:00 | C123: 1.57 | D123: 3.133333333 | E123: 03:08:00
B124: 01:35:00 | C124: 1.58 | D124: 3.166666667 | E124: 03:10:00
B125: 01:36:00 | C125: 1.6 | D125: 3.2 | E125: 03:12:00
B126: 01:37:00 | C126: 1.62 | D126: 3.233333333 | E126: 03:14:00
B127: 01:38:00 | C127: 1.63 | D127: 3.266666667 | E127: 03:16:00
B128: 01:39:00 | C128: 1.65 | D128: 3.3 | E128: 03:18:00
B129: 01:40:00 | C129: 1.67 | D129: 3.333333333 | E129: 03:20:00
B130: 01:41:00 | C130: 1.68 | D130: 3.366666667 | E130: 03:22:00
B131: 01:42:00 | C131: 1.7 | D131: 3.4 | E131: 03:24:00
B132: 01:43:00 | C132: 1.72 | D132: 3.433333333 | E132: 03:26:00
B133: 01:44:00 | C133: 1.73 | D133: 3.466666667 | E133: 03:28:00
B134: 01:45:00 | C134: 1.75 | D134: 3.5 | E134: 03:30:00
B135: 01:46:00 | C135: 1.77 | D135: 3.533333333 | E135: 03:32:00
B136: 01:47:00 | C136: 1.78 | D136: 3.566666667 | E136: 03:34:00
B137: 01:48:00 | C137: 1.8 | D137: 3.6 | E137: 03:36:00
B138: 01:49:00 | C138: 1.82 | D138: 3.633333333 | E138: 03:38:00
B139: 01:50:00 | C139: 1.83 | D139: 3.666666667 | E139: 03:40:00
B140: 01:51:00 | C140: 1.85 | D140: 3.7 | E140: 03:42:00
B141: 01:52:00 | C141: 1.87 | D141: 3.733333333 | E141: 03:44:00
B142: 01:53:00 | C142: 1.88 | D142: 3.766666667 | E142: 03:46:00
B143: 01:54:00 | C143: 1.9 | D143: 3.8 | E143: 03:48:00
B144: 01:55:00 | C144: 1.92 | D144: 3.833333333 | E144: 03:50:00
B145: 01:56:00 | C145: 1.93 | D145: 3.866666667 | E145: 03:52:00
B146: 01:57:00 | C146: 1.95 | D146: 3.9 | E146: 03:54:00
B147: 01:58:00 | C147: 1.97 | D147: 3.933333333 | E147: 03:56:00
B148: 01:59:00 | C148: 1.98 | D148: 3.966666667 | E148: 03:58:00
B149: 02:00:00 | C149: 2 | D149: 4 | E149: 04:00:00
B150: 02:01:00 | C150: =2+C30 -> 2.02 | D150: 4.033333333 | E150: 04:02:00
B151: 02:02:00 | C151: =2+C31 -> 2.03 | D151: 4.066666667 | E151: 04:04:00
B152: 02:03:00 | C152: =2+C32 -> 2.05 | D152: 4.1 | E152: 04:06:00
B153: 02:04:00 | C153: 2.07 | D153: 4.133333333 | E153: 04:08:00
B154: 02:05:00 | C154: 2.08 | D154: 4.166666667 | E154: 04:10:00
B155: 02:06:00 | C155: 2.1 | D155: 4.2 | E155: =B155*2 -> 04:12:00
B156: 02:07:00 | C156: 2.12 | D156: 4.233333333 | E156: 04:14:00
B157: 02:08:00 | C157: 2.13 | D157: =E157*24 -> 4.266666667 | E157: 04:16:00
B158: 02:09:00 | C158: 2.15 | D158: 4.3 | E158: 04:18:00
B159: 02:10:00 | C159: 2.17 | D159: 4.333333333 | E159: 04:20:00
B160: 02:11:00 | C160: 2.18 | D160: 4.366666667 | E160: 04:22:00
B161: 02:12:00 | C161: 2.2 | D161: 4.4 | E161: 04:24:00
B162: 02:13:00 | C162: 2.22 | D162: 4.433333333 | E162: 04:26:00
B163: 02:14:00 | C163: 2.23 | D163: 4.466666667 | E163: 04:28:00
B164: 02:15:00 | C164: 2.25 | D164: 4.5 | E164: 04:30:00
B165: 02:16:00 | C165: 2.27 | D165: 4.533333333 | E165: 04:32:00
B166: 02:17:00 | C166: 2.28 | D166: 4.566666667 | E166: 04:34:00
B167: 02:18:00 | C167: 2.3 | D167: 4.6 | E167: 04:36:00
B168: 02:19:00 | C168: 2.32 | D168: 4.633333333 | E168: 04:38:00
B169: 02:20:00 | C169: 2.33 | D169: 4.666666667 | E169: 04:40:00
B170: 02:21:00 | C170: 2.35 | D170: 4.7 | E170: 04:42:00
B171: 02:22:00 | C171: 2.37 | D171: 4.733333333 | E171: 04:44:00
B172: 02:23:00 | C172: 2.38 | D172: 4.766666667 | E172: 04:46:00
B173: 02:24:00 | C173: 2.4 | D173: 4.8 | E173: 04:48:00
B174: 02:25:00 | C174: 2.42 | D174: 4.833333333 | E174: 04:50:00
B175: 02:26:00 | C175: 2.43 | D175: 4.866666667 | E175: 04:52:00
B176: 02:27:00 | C176: 2.45 | D176: 4.9 | E176: 04:54:00
B177: 02:28:00 | C177: 2.47 | D177: 4.933333333 | E177: 04:56:00
B178: 02:29:00 | C178: 2.48 | D178: 4.966666667 | E178: 04:58:00
B179: 02:30:00 | C179: 2.5 | D179: 5 | E179: 05:00:00
B180: 02:31:00 | C180: 2.52 | D180: 5.033333333 | E180: 05:02:00
B181: 02:32:00 | C181: 2.53 | D181: 5.066666667 | E181: 05:04:00
B182: 02:33:00 | C182: 2.55 | D182: 5.1 | E182: 05:06:00
B183: 02:34:00 | C183: 2.57 | D183: 5.133333333 | E183: 05:08:00
B184: 02:35:00 | C184: 2.58 | D184: 5.166666667 | E184: 05:10:00
B185: 02:36:00 | C185: 2.6 | D185: 5.2 | E185: 05:12:00
B186: 02:37:00 | C186: 2.62 | D186: 5.233333333 | E186: 05:14:00
B187: 02:38:00 | C187: 2.63 | D187: 5.266666667 | E187: 05:16:00
B188: 02:39:00 | C188: 2.65 | D188: 5.3 | E188: 05:18:00
B189: 02:40:00 | C189: 2.67 | D189: 5.333333333 | E189: 05:20:00
B190: 02:41:00 | C190: 2.68 | D190: 5.366666667 | E190: 05:22:00
B191: 02:42:00 | C191: 2.7 | D191: 5.4 | E191: 05:24:00
B192: 02:43:00 | C192: 2.72 | D192: 5.433333333 | E192: 05:26:00
B193: 02:44:00 | C193: 2.73 | D193: 5.466666667 | E193: 05:28:00
B194: 02:45:00 | C194: 2.75 | D194: 5.5 | E194: 05:30:00
B195: 02:46:00 | C195: 2.77 | D195: 5.533333333 | E195: 05:32:00
B196: 02:47:00 | C196: 2.78 | D196: 5.566666667 | E196: 05:34:00
B197: 02:48:00 | C197: 2.8 | D197: 5.6 | E197: 05:36:00
B198: 02:49:00 | C198: 2.82 | D198: 5.633333333 | E198: 05:38:00
B199: 02:50:00 | C199: 2.83 | D199: 5.666666667 | E199: 05:40:00
B200: 02:51:00 | C200: 2.85 | D200: 5.7 | E200: 05:42:00
B201: 02:52:00 | C201: 2.87 | D201: 5.733333333 | E201: 05:44:00
B202: 02:53:00 | C202: 2.88 | D202: 5.766666667 | E202: 05:46:00
B203: 02:54:00 | C203: 2.9 | D203: 5.8 | E203: 05:48:00
B204: 02:55:00 | C204: 2.92 | D204: 5.833333333 | E204: 05:50:00
B205: 02:56:00 | C205: 2.93 | D205: 5.866666667 | E205: 05:52:00
B206: 02:57:00 | C206: 2.95 | D206: 5.9 | E206: 05:54:00
... 962 more rows

Sheet Hébergement (hidden)
F3: =Général!L3 -> 0
B9: =IF(OR(Général!J65=2,'Calculs choix indemnité'!A10<'Calculs choix indemnité'!A12), "ATTENTION: Vous ne pouvez demander le remboursement des frais d'hébergement.", "") -> 
B11: Remplir les cellules jaunes seulement, si votre transport comprend un coucher.
D14: =CONCATENATE(Général!G9," ",Général!J9) ->  | F14: =CONCATENATE(Général!G10," ",Général!J10) -> 
B17: Lieu du coucher | F17: =D17 -> 0
B19: Période le l'année | F19: =D19 -> 0
B20: Montant maximal pouvant être remboursé excluant toutes taxes | D20: =IFERROR(INDEX(Divers!$G$8:$H$16,MATCH(D17,Divers!$F$8:$F$16,0),MATCH(D19,Divers!$G$7:$H$7,0)),"") ->  | F20: =IFERROR(INDEX(Divers!$G$8:$H$16,MATCH(F17,Divers!$F$8:$F$16,0),MATCH(F19,Divers!$G$7:$H$7,0)),"") -> 
B21: Coût du coucher inscrit sur la facture avant toutes taxes
B23: Taxes sur l'hébergement inscrit sur la facture
B25: Montant maximal pouvant être remboursé excluant TPS et TVQ | D25: =IF(D20<D21,D20+D23,D21+D23) -> 0 | F25: =IF(F20<F21,F20+F23,F21+F23) -> 0
F27: =IFERROR(D25+F25,"") -> 0
B31: Commentaires:

Sheet Repas (hidden)
L4: =Général!L3 -> 0
B11: Remplir les cellules jaunes seulement. Inscrire le coût des repas sans taxes, et les pourboires séparément.
D14: =CONCATENATE(Général!G9," ",Général!J9) ->  | I14: =CONCATENATE(Général!G10," ",Général!J10) -> 
B17: Déjeuner | D17: Coûts réels | F17: Coûts admissibles | I17: Coûts réels | K17: Coûts admissibles | M17: Total coûts admissibles | N17: colonnes pour pourboire maximum admissible A CACHER
N18: trudeau | O18: simars
B19: Coût avant taxes | F19: =IF($D19+$D20<'Calculs repas'!$D$12,$D19,'Calculs repas'!$D$7) -> 0 | K19: =IF($I19+$I20<'Calculs repas'!$D$12,$I19,'Calculs repas'!$D$7) -> 0 | M19: =F19+K19 -> 0 | N19: =$F19+$F20 -> 0 | O19: =$K19+$K20 -> 0
B20: Taxes | D20: =ROUND(D19*TAUX!$C$61,2)+ROUND(D19*TAUX!$C$62,2) -> 0 | F20: =IF($D19+$D20<'Calculs repas'!$D$12,$D20,'Calculs repas'!$D$10) -> 0 | I20: =ROUND(I19*TAUX!$C$61,2)+ROUND(I19*TAUX!$C$62,2) -> 0 | K20: =IF($I19+$I20<'Calculs repas'!$D$12,$I20,'Calculs repas'!$D$10) -> 0 | M20: =F20+K20 -> 0 | N20: =$D21 -> 0 | O20: =$I21 -> 0
B21: Pourboire | F21: =IF($N20<$N21,$N20,$N21) -> 0 | K21: =IF($O20<$O21,$O20,$O21) -> 0 | M21: =F21+K21 -> 0 | N21: =IF('Calculs repas'!$D$12-$N19>0,'Calculs repas'!$D$12-$N19,) -> 14.66 | O21: =IF('Calculs repas'!$D$12-$O19>0,'Calculs repas'!$D$12-$O19,) -> 14.66
B22: Total déjeuner | D22: =SUM(D19:D21) -> 0 | F22: =SUM(F19:F21) -> 0 | I22: =SUM(I19:I21) -> 0 | K22: =SUM(K19:K21) -> 0 | M22: =F22+K22 -> 0
B26: Dîner | D26: Coûts réels | F26: Coûts admissibles | I26: Coûts réels | K26: Coûts admissibles | M26: Total coûts admissibles
B28: Coût avant taxes | F28: =IF($D28+$D29<'Calculs repas'!$F$12,$D28,'Calculs repas'!$F$7) -> 0 | K28: =IF($I28+$I29<'Calculs repas'!$F$12,$I28,'Calculs repas'!$F$7) -> 0 | M28: =F28+K28 -> 0 | N28: =$F28+$F29 -> 0 | O28: =$K28+$K29 -> 0
B29: Taxes | D29: =ROUND(D28*TAUX!$C$61,2)+ROUND(D28*TAUX!$C$62,2) -> 0 | F29: =IF($D28+$D29<'Calculs repas'!$F$12,$D29,'Calculs repas'!$F$10) -> 0 | I29: =ROUND(I28*TAUX!$C$61,2)+ROUND(I28*TAUX!$C$62,2) -> 0 | K29: =IF($I28+$I29<'Calculs repas'!$F$12,$I29,'Calculs repas'!$F$10) -> 0 | M29: =F29+K29 -> 0 | N29: =$D30 -> 0 | O29: =$I30 -> 0
B30: Pourboire | F30: =IF($N29<$N30,$N29,$N30) -> 0 | K30: =IF($O29<$O30,$O29,$O30) -> 0 | M30: =F30+K30 -> 0 | N30: =IF('Calculs repas'!$F$12-$N28>0,'Calculs repas'!$F$12-$N28,) -> 20.1781125 | O30: =IF('Calculs repas'!$F$12-$O28>0,'Calculs repas'!$F$12-$O28,) -> 20.1781125
B31: Total déjeuner | D31: =SUM(D28:D30) -> 0 | F31: =SUM(F28:F30) -> 0 | I31: =SUM(I28:I30) -> 0 | K31: =SUM(K28:K30) -> 0 | M31: =F31+K31 -> 0
B35: Souper | D35: Coûts réels | F35: Coûts admissibles | I35: Coûts réels | K35: Coûts admissibles | M35: Total coûts admissibles
B37: Coût avant taxes | F37: =IF($D37+$D38<'Calculs repas'!$H$12,$D37,'Calculs repas'!$H$7) -> 0 | K37: =IF($I37+$I38<'Calculs repas'!$H$12,$I37,'Calculs repas'!$H$7) -> 0 | M37: =F37+K37 -> 0 | N37: =$F37+$F38 -> 0 | O37: =$K37+$K38 -> 0
B38: Taxes | D38: =D37*ROUNDUP(TAUX!D63,3) -> 0 | F38: =IF($D37+$D38<'Calculs repas'!$H$12, $D38, 'Calculs repas'!$H$10) -> 0 | I38: =IF(I37="18,70 $",[1]calculsrepas!$H$10,I37*TAUX!$C$63) -> 0 | K38: =IF($I37+$I38<'Calculs repas'!$H$12,$I38,'Calculs repas'!$H$10) -> 0 | M38: =F38+K38 -> 0 | N38: =$D39 -> 0 | O38: =$I39 -> 0
B39: Pourboire | F39: =IF($N38<$N39,$N38,$N39) -> 0 | K39: =IF($O38<$O39,$O38,$O39) -> 0 | M39: =F39+K39 -> 0 | N39: =IF('Calculs repas'!$H$12-$N37>0,'Calculs repas'!$H$12-$N37,) -> 30.47 | O39: =IF('Calculs repas'!$H$12-$O37>0,'Calculs repas'!$H$12-$O37,) -> 30.47
B40: Total déjeuner | D40: =SUM(D37:D39) -> 0 | F40: =SUM(F37:F39) -> 0 | I40: =SUM(I37:I39) -> 0 | K40: =SUM(K37:K39) -> 0 | M40: =F40+K40 -> 0
K42: Repas (section dépenses taxables remboursables) | M42: =M19+M28+M37 -> 0
K43: Taxes | M43: =M20+M29+M38 -> 0
K44: Pourboires (section dépenses non taxables remboursables) | M44: =M21+M30+M39 -> 0
K45: Total | M45: =SUM(M42:M44) -> 0
B47: REPAS AU-DELÀ DES PREMIERS 24 HEURES SEULEMENT
B49: Déjeuner | D49: Coûts réels | F49: Coûts admissibles | I49: Coûts réels | K49: Coûts admissibles | M49: Total coûts admissibles | N49: colonnes pour pourboire maximum admissible A CACHER
N50: trudeau | O50: simars
B51: Coût avant taxes | F51: =IF($D51+$D52<'Calculs repas'!$D$12,$D51,'Calculs repas'!$D$7) -> 0 | K51: =IF($I51+$I52<'Calculs repas'!$D$12,$I51,'Calculs repas'!$D$7) -> 0 | M51: =F51+K51 -> 0 | N51: =$F51+$F52 -> 0 | O51: =$K51+$K52 -> 0
B52: Taxes | D52: =ROUND(D51*TAUX!$C$61,2)+ROUND(D51*TAUX!$C$62,2) -> 0 | F52: =IF($D51+$D52<'Calculs repas'!$D$12,$D52,'Calculs repas'!$D$10) -> 0 | I52: =ROUND(I51*TAUX!$C$61,2)+ROUND(I51*TAUX!$C$62,2) -> 0 | K52: =IF($I51+$I52<'Calculs repas'!$D$12,$I52,'Calculs repas'!$D$10) -> 0 | M52: =F52+K52 -> 0 | N52: =$D53 -> 0 | O52: =$I53 -> 0
B53: Pourboire | F53: =IF($N52<$N53,$N52,$N53) -> 0 | K53: =IF($O52<$O53,$O52,$O53) -> 0 | M53: =F53+K53 -> 0 | N53: =IF('Calculs repas'!$D$12-$N51>0,'Calculs repas'!$D$12-$N51,) -> 14.66 | O53: =IF('Calculs repas'!$D$12-$O51>0,'Calculs repas'!$D$12-$O51,) -> 14.66
B54: Total déjeuner | D54: =SUM(D51:D53) -> 0 | F54: =SUM(F51:F53) -> 0 | I54: =SUM(I51:I53) -> 0 | K54: =SUM(K51:K53) -> 0 | M54: =F54+K54 -> 0
B58: Dîner | D58: Coûts réels | F58: Coûts admissibles | I58: Coûts réels | K58: Coûts admissibles | M58: Total coûts admissibles
B60: Coût avant taxes | F60: =IF($D60+$D61<'Calculs repas'!$F$12,$D60,'Calculs repas'!$F$7) -> 0 | K60: =IF($I60+$I61<'Calculs repas'!$F$12,$I60,'Calculs repas'!$F$7) -> 0 | M60: =F60+K60 -> 0 | N60: =$F60+$F61 -> 0 | O60: =$K60+$K61 -> 0
B61: Taxes | D61: =ROUND(D60*TAUX!$C$61,2)+ROUND(D60*TAUX!$C$62,2) -> 0 | F61: =IF($D60+$D61<'Calculs repas'!$F$12,$D61,'Calculs repas'!$F$10) -> 0 | I61: =ROUND(I60*TAUX!$C$61,2)+ROUND(I60*TAUX!$C$62,2) -> 0 | K61: =IF($I60+$I61<'Calculs repas'!$F$12,$I61,'Calculs repas'!$F$10) -> 0 | M61: =F61+K61 -> 0 | N61: =$D62 -> 0 | O61: =$I62 -> 0
B62: Pourboire | F62: =IF($N61<$N62,$N61,$N62) -> 0 | K62: =IF($O61<$O62,$O61,$O62) -> 0 | M62: =F62+K62 -> 0 | N62: =IF('Calculs repas'!$F$12-$N60>0,'Calculs repas'!$F$12-$N60,) -> 20.1781125 | O62: =IF('Calculs repas'!$F$12-$O60>0,'Calculs repas'!$F$12-$O60,) -> 20.1781125
B63: Total déjeuner | D63: =SUM(D60:D62) -> 0 | F63: =SUM(F60:F62) -> 0 | I63: =SUM(I60:I62) -> 0 | K63: =SUM(K60:K62) -> 0 | M63: =F63+K63 -> 0
B67: Souper | D67: Coûts réels | F67: Coûts admissibles | I67: Coûts réels | K67: Coûts admissibles | M67: Total coûts admissibles
B69: Coût avant taxes | F69: =IF($D69+$D70<'Calculs repas'!$H$12,$D69,'Calculs repas'!$H$7) -> 0 | K69: =IF($I69+$I70<'Calculs repas'!$H$12,$I69,'Calculs repas'!$H$7) -> 0 | M69: =F69+K69 -> 0 | N69: =$F69+$F70 -> 0 | O69: =$K69+$K70 -> 0
B70: Taxes | D70: =D69*ROUNDUP(TAUX!D63,3) -> 0 | F70: =IF($D69+$D70<'Calculs repas'!$H$12,$D70,'Calculs repas'!$H$10) -> 0 | I70: =IF(I69="18,70 $",[1]calculsrepas!$H$10,I69*TAUX!$C$63) -> 0 | K70: =IF($I69+$I70<'Calculs repas'!$H$12,$I70,'Calculs repas'!$H$10) -> 0 | M70: =F70+K70 -> 0 | N70: =$D71 -> 0 | O70: =$I71 -> 0
B71: Pourboire | F71: =IF($N70<$N71,$N70,$N71) -> 0 | K71: =IF($O70<$O71,$O70,$O71) -> 0 | M71: =F71+K71 -> 0 | N71: =IF('Calculs repas'!$H$12-$N69>0,'Calculs repas'!$H$12-$N69,) -> 30.47 | O71: =IF('Calculs repas'!$H$12-$O69>0,'Calculs repas'!$H$12-$O69,) -> 30.47
B72: Total déjeuner | D72: =SUM(D69:D71) -> 0 | F72: =SUM(F69:F71) -> 0 | I72: =SUM(I69:I71) -> 0 | K72: =SUM(K69:K71) -> 0 | M72: =F72+K72 -> 0
K75: Repas (section dépenses taxables remboursables) | M75: =M51+M60+M69 -> 0
K76: Taxes | M76: =M52+M61+M70 -> 0
K77: Pourboires (section dépenses non taxables remboursables) | M77: =M53+M62+M71 -> 0
K78: Total | M78: =SUM(M75:M77) -> 0
B79: Commentaires:

Sheet Garde (hidden)
K4: =Général!L3 -> 0
B8: Remplir les cellules jaunes seulement.
D9: Début | F9: Fin | G9: date en texte et heure en texte | H9: date en texte et heure en texte | I9: Début / Fin | J9: Durée en heures et minutes | K9: Nombre de périodes
B12: Date: | G12: =IF(D12="","",(TEXT(D12,"aaaa-mm-jj"))) ->  | H12: =IF(F12="","",TEXT(F12,"aaaa-mm-jj")) ->  | I12: =G12&" "&G14 -> 
B14: Heure: | G14: =IF(D14="","",TEXT(D14,"hh:mm")) ->  | H14: =IF(G14="","",TEXT(F14,"hh:mm")) ->  | I14: =H12&" "&H14 ->  | J14: =IFERROR(IF(I14-I12>=0,I14-I12,""),"") ->  | K14: =IF(J14<=Divers!$C$7,1,IF(J14<=Divers!$C$8,2,IF(J14<=Divers!$C$9,3,IF(J14<=Divers!$C$10,4,IF(J14<=Divers!$C$11,5,IF(J14<=Divers!$C$12,6,IF(J14<=Divers!$C$13,7,IF(J14<=Divers!$C$14,8)))))))) -> FALSE
B18: Date: | G18: =IF(D18="","",(TEXT(D18,"aaaa-mm-jj"))) ->  | H18: =IF(F18="","",TEXT(F18,"aaaa-mm-jj")) ->  | I18: =G18&" "&G20 -> 
B20: Heure: | G20: =IF(D20="","",TEXT(D20,"hh:mm")) ->  | H20: =IF(G20="","",TEXT(F20,"hh:mm")) ->  | I20: =H18&" "&H20 ->  | J20: =IFERROR(IF(I20-I18>0,I20-I18,""),"") ->  | K20: =IF(J20<=Divers!$C$7,1,IF(J20<=Divers!$C$8,2,IF(J20<=Divers!$C$9,3,IF(J20<=Divers!$C$10,4,IF(J20<=Divers!$C$11,5,IF(J20<=Divers!$C$12,6,IF(J20<=Divers!$C$13,7,IF(J20<=Divers!$C$14,8)))))))) -> FALSE
B24: Date: | G24: =IF(D24="","",(TEXT(D24,"aaaa-mm-jj"))) ->  | H24: =IF(F24="","",TEXT(F24,"aaaa-mm-jj")) ->  | I24: =G24&" "&G26 -> 
B26: Heure: | G26: =IF(D26="","",TEXT(D26,"hh:mm")) ->  | H26: =IF(G26="","",TEXT(F26,"hh:mm")) ->  | I26: =H24&" "&H26 ->  | J26: =IFERROR(IF(I26-I24>0,I26-I24,""),"") ->  | K26: =IF(J26<=Divers!$C$7,1,IF(J26<=Divers!$C$8,2,IF(J26<=Divers!$C$9,3,IF(J26<=Divers!$C$10,4,IF(J26<=Divers!$C$11,5,IF(J26<=Divers!$C$12,6,IF(J26<=Divers!$C$13,7,IF(J26<=Divers!$C$14,8)))))))) -> FALSE
K29: =SUM(K12:K28) -> 0
B30: Format date = aaaa-mm-jj
B31: Format heure = hh:mm
B33: Ce tableau permet d'inscrire 8 périodes de 24 heures de garde maximum. Si le nombre de jours de garde est supérieur à 8, veuillez les inscrire dans les autres cellules.
B36: Commentaires:

Sheet Stationnement (hidden)
E5: =Général!L3 -> 0
B8: Remplir les cellules jaunes seulement, au besoin.
B12: Coût du stationnement | C12: $
B14: Est-ce que le montant payé pour le stationnement comprend les taxes ? | C14: Oui / non / ne sait pas
B16: Coût avant taxes: | D16: =IF(D14="oui",D12/1.14975,D12) -> 0
B17: TPS: | D17: =D16*0.05 -> 0
B18: TVQ: | D18: =D16*0.09975 -> 0
B19: Coût incluant les taxes: | D19: =D16+D17+D18 -> 0
B22: Commentaires:

Sheet Choix (hidden)
D5: =Général!L3 -> 0
B6: =IFERROR(IF('Calculs choix indemnité'!A10<'Calculs choix indemnité'!A12, "La durée du transport est inférieure à 12 heures. Seuls les repas, s'il y a lieu, peuvent être remboursés.", IF(AND('Calculs choix indemnité'!A10>'Calculs choix indemnité'!A12,Général!J65=2), "La durée du transport est supérieure à 12 heures sans coucher. "& 'Calculs choix indemnité'!A34, IF(AND('Calculs choix indemnité'!A10>'Calculs choix indemnité'!A12,Général!J65=1,'Calculs choix indemnité'!A10<'Calculs choix indemnité'!A13), "La durée du transport se situe entre 12 et 18 heures."&'Calculs choix indemnité'!A34, IF(AND('Calculs choix indemnité'!A10>'Calculs choix indemnité'!A12,Général!J65=1,'Calculs choix indemnité'!A10<'Calculs choix indemnité'!A14), "La durée du transport se situe entre 18 et 24 heures. Vous pouvez choisir de recevoir 100 % de l'indemnité journalière ou de demander le remboursement des dépenses réelles.", IF(AND('Calculs choix indemnité'!A10>'Calculs choix indemnité'!A12,Général!J65=1,'Calculs choix indemnité'!A10>'Calculs choix indemnité'!A14), "La durée du transport est supérieure à 24 heures. Vous pouvez choisir de recevoir 100 % de l'indemnité journalière plus les repas pris au-delà de cette période ou de demander le remboursement des dépenses réelles."))))),"") -> 
B8: Pour vous aider dans votre choix:
B10: Calcul de l'indemnité à laquelle vous avez droit: | H10: =Général!J73 -> 0
B11: =IF(B6='Calculs choix indemnité'!G21,'Calculs choix indemnité'!A33, IF(Choix!B6='Calculs choix indemnité'!G22,'Calculs choix indemnité'!A34, IF(Choix!B6='Calculs choix indemnité'!G23,'Calculs choix indemnité'!A34, IF(Choix!B6='Calculs choix indemnité'!G24,'Calculs choix indemnité'!A35, IF(Choix!B6='Calculs choix indemnité'!G25,'Calculs choix indemnité'!A36,))))) -> 0
B12: =IF('Calculs choix indemnité'!A10<='Calculs choix indemnité'!A12,"Le transport a duré moins de 12 heures, vous ne pouvez effectuer un choix.", IF(Général!J65=2,"50 % de l'indemnité soit "&H14&",00 $ par préposé.", IF(AND(Général!J65=1,Général!L65>='Calculs choix indemnité'!A12,Général!L65<'Calculs choix indemnité'!A13),"50 % de l'indemnité soit "&'Calculs choix indemnité'!D16&",00 $ par préposé:", IF(AND(Général!J65=1,Général!L65>='Calculs choix indemnité'!A10,Général!L65<'Calculs choix indemnité'!A14),"100 % de l'indemnité soit "&'Calculs choix indemnité'!E17&",00 $ par préposé:", IF('Calculs choix indemnité'!A10>='Calculs choix indemnité'!A14,"100 % de l'indemnité soit "&'Calculs choix indemnité'!E17&",00 $ par préposé:")) ))) ->  | D12: =IF('Calculs choix indemnité'!A10<='Calculs choix indemnité'!A12,0, IF('Calculs choix indemnité'!A10>='Calculs choix indemnité'!A14,'Calculs choix indemnité'!E17*'Calculs choix indemnité'!F17, IF(AND('Calculs choix indemnité'!A10>='Calculs choix indemnité'!A12,Général!H65="non"),H14*'Calculs choix indemnité'!F17, IF(AND('Calculs choix indemnité'!A10>='Calculs choix indemnité'!A12,'Calculs choix indemnité'!A10<='Calculs choix indemnité'!A13,Général!H65="oui"),'Calculs choix indemnité'!D16*'Calculs choix indemnité'!F17, IF(AND('Calculs choix indemnité'!A10>='Calculs choix indemnité'!A13,'Calculs choix indemnité'!A10<='Calculs choix indemnité'!A14,Général!H65="oui"),'Calculs choix indemnité'!E17*'Calculs choix indemnité'!F17,))))) ->  | H12: =IF(L16="2022",L17,IF(M16="2023",M17,IF(N16="2024",N17,""))) ->  | L12: 2022-07-01 | M12: 2023-07-01 | N12: 2024-07-01
B13: =IF('Calculs choix indemnité'!A10>='Calculs choix indemnité'!A14,"Plus les repas pris au-delà des premiers 24 heures, s'il y a lieu:","") ->  | D13: =IF('Calculs choix indemnité'!A10>='Calculs choix indemnité'!A14, Repas!M75,"") ->  | H13: =IF(H12="oui","haute saison","basse saison") -> basse saison | L13: 2022-11-01 | M13: 2023-11-01 | N13: 2024-11-01
B14: Total: | D14: =SUM(D12:D13) ->  | H14: =INDEX(TAUX!G50:H58,MATCH(H10,TAUX!F50:F58,0),MATCH(H13,TAUX!G49:H49,0)) ->  | L14: 2022-01-01 | M14: 2023-01-01 | N14: 2024-01-01
B15: OU | L15: 2022-12-31 | M15: 2023-12-31 | N15: 2024-12-31
B16: =IF(AND('Calculs choix indemnité'!A10>'Calculs choix indemnité'!A12,Général!H65="non"),"Dépenses relatives aux repas (excluant les pourboires)", "Dépenses relatives aux repas (excluant les pourboires) et à l'hébergement que vous avez déjà inscrites:") ->  | D16: =IF(Général!H65="non", Repas!M42, Repas!M42+Repas!M75+Hébergement!F27) -> 0 | L16: =IF(AND(Général!G14>=L14,Général!G14<=L15),"2022","non") -> non | M16: =IF(AND(Général!G14>=M14,Général!G14<=M15),"2023","non") -> non | N16: =IF(AND(Général!G14>=N14,Général!G14<=N15),"2024","non") -> non
L17: =IF(AND(Général!G14>=Choix!L12,Général!G14<Choix!L13),"oui","non") -> non | M17: =IF(AND(Général!G14>=Choix!M12,Général!G14<M13),"oui","non") -> non | N17: =IF(AND(Général!G14>=Choix!N12,Général!G14<N13),"oui","non") -> non
B18: Faites votre choix ici:
D21: =IF(AND(C17=1,D14=0),"Vous devez choisir Dépenses réelles", IF(C17=1,D14, IF(AND(C17=2,D14=0),D16, IF(C17=2,D16)))) -> 
B23: Commentaires:

Sheet Jours fériés (hidden)
B1: Liste des jours fériés 2022 à 2025 | E1: Calendrier des jours fériés 2022 à 2025
B3: Calendrier 2021 à 2025 | C3: S ou FDS | D3: F | E3: Événement | G3: 2022 | H3: 2023 | I3: 2024 | J3: 2025
B4: 2021-01-01 | C4: s | D4: Oui | F4: Jour de l'An | G4: samedi 1er janvier 2022 | H4: dimanche 1er janvier 2023 | I4: lundi 1er janvier 2024 | J4: mercredi 1er janvier 2025
B5: 2021-01-02 | C5: fds | D5: Oui | F5: Lendemain du jour de l'An | G5: dimanche 2 janvier 2022 | H5: lundi 2 janvier 2023 | I5: mardi 2 janvier 2024 | J5: jeudi 2 janvier 2025
B6: 2021-01-03 | C6: fds | F6: Vendredi saint | G6: vendredi 15 avril 2022 | H6: vendredi 7 avril 2023 | I6: vendredi 29 mars 2024 | J6: vendredi 18 avril 2025
B7: 2021-01-04 | C7: s | F7: Lundi de Pâques | G7: lundi 18 avril 2022 | H7: lundi 10 avril 2023 | I7: lundi 1er avril 2024 | J7: lundi 21 avril 2025
B8: 2021-01-05 | C8: s | F8: Journée internationale des Patriotes | G8: lundi 23 mai 2022 | H8: lundi 22 mai 2023 | I8: lundi 20 mai 2024 | J8: lundi 19 mai 2025
B9: 2021-01-06 | C9: s | F9: Fête nationale du Québec | G9: vendredi 24 juin 2022 | H9: samedi 24 juin 2023 | I9: lundi 24 juin 2024 | J9: mardii 24 juin 2025
B10: 2021-01-07 | C10: s | F10: Fête du Canada | G10: vendredi 1er juillet 2022 | H10: samedi 1er juillet 2023 | I10: lundi 1er juillet 2024 | J10: mardi 1er juillet 2025
B11: 2021-01-08 | C11: s | F11: Fête du Travail | G11: lundi 5 septembre 2022 | H11: lundi 4 septembre 2023 | I11: lundi 2 septembre 2024 | J11: lundi 1er septembre 2025
B12: 2021-01-09 | C12: fds | F12: Fête de l'Action de grâces | G12: lundi 10 octobre 2022 | H12: lundi 9 octobre 2023 | I12: lundi 14 octobre 2024 | J12: lundi 13 octobre 2025
B13: 2021-01-10 | C13: fds | F13: Veille de Noël | G13: samedi 24 décembre 2022 | H13: dimanche 24 décembre 2023 | I13: mardi 24 décembre 2024 | J13: mercredi 24 décembre 2025
B14: 2021-01-11 | C14: s | F14: Noël | G14: dimanche 25 décembre 2022 | H14: lundi 25 décembre 2023 | I14: mercredi 25 décembre 2024 | J14: jeudi 25 décembre 2025
B15: 2021-01-12 | C15: s | F15: Lendemain de Noël | G15: lundi 26 décembre 2022 | H15: mardi 26 décembre 2023 | I15: jeudi 26 décembre 2024 | J15: vendredi 26 décembre 2025
B16: 2021-01-13 | C16: s | F16: Veille du Jour de l'An | G16: samedi 31 décembre 2022 | H16: dimanche 31 décembre 2023 | I16: mardi 31 décembre 2024 | J16: mercredi 31 décembre 2025
B17: 2021-01-14 | C17: s
B18: 2021-01-15 | C18: s
B19: 2021-01-16 | C19: fds
B20: 2021-01-17 | C20: fds | E20: LE CALENDRIER DOIT:
B21: 2021-01-18 | C21: s | E21: - ÊTRE TRANSFÉRÉ SUR UNE SEULE PAGE ET DÉPOSÉ DANS LA SECTION PARTENAIRE DU SITE DU BC
B22: 2021-01-19 | C22: s | E22: - ÊTRE INTÉGRÉ DANS LE DOCUMENT DE FORMATION À TITRE DE RÉFÉRENCE
B23: 2021-01-20 | C23: s
B24: 2021-01-21 | C24: s
B25: 2021-01-22 | C25: s | E25: LA LISTE DES JOURS FÉRIÉS:
B26: 2021-01-23 | C26: fds | E26: - EST S'ÉTEND DE 2021 À 2025
B27: 2021-01-24 | C27: fds | E27: - ELLE SERT DANS LE CALCUL DU TEMPS D'ATTENTE. NE PAS EFFACER.
B28: 2021-01-25 | C28: s
B29: 2021-01-26 | C29: s
B30: 2021-01-27 | C30: s | E30: 1er trsp | F30: 2e trsp | G30: 3e trsp | H30: 4e trsp
B31: 2021-01-28 | C31: s | E31: =IF(VLOOKUP(Général!$G14,$B$4:$D$1829,2,FALSE)="s","jour de semaine","jour de fin de semaine") ->  | F31: =IF(VLOOKUP(#REF!,$B44:$D$1829,2,FALSE)="s","Jour de semaine","Jour de fin de semaine") ->  | G31: =IF(VLOOKUP(#REF!,$B4:$D$1829,2,FALSE)="s","Jour de semaine","Jour de fin de semaine") ->  | H31: =IF(VLOOKUP(#REF!,$B4:$D$1829,2,FALSE)="s","Jour de semaine","Jour de fin de semaine") -> 
B32: 2021-01-29 | C32: s | E32: =IF(VLOOKUP(Général!$G14,$B$4:$D$1829,3,FALSE)="oui","férié","non férié") ->  | F32: =IF(VLOOKUP(#REF!,$B45:$D$1829,3,FALSE)="oui","férié","non férié") ->  | G32: =IF(VLOOKUP(#REF!,$B4:$D$1829,3,FALSE)="oui","férié","non férié") ->  | H32: =IF(VLOOKUP(#REF!,$B4:$D$1829,3,FALSE)="oui","férié","non férié") -> 
B33: 2021-01-30 | C33: fds
B34: 2021-01-31 | C34: fds | E34: =IF(VLOOKUP(Général!$L14,$B$4:$D$1829,2,FALSE)="s","jour de semaine","jour de fin de semaine") ->  | F34: =IF(VLOOKUP(#REF!,$B47:$D$1829,2,FALSE)="s","Jour de semaine","Jour de fin de semaine") ->  | G34: =IF(VLOOKUP(#REF!,$B4:$D$1829,2,FALSE)="s","Jour de semaine","Jour de fin de semaine") ->  | H34: =IF(VLOOKUP(#REF!,$B4:$D$1829,2,FALSE)="s","Jour de semaine","Jour de fin de semaine") -> 
B35: 2021-02-01 | C35: s | E35: =IF(VLOOKUP(Général!$L14,$B$4:$D$1829,3,FALSE)="oui","férié","non férié") ->  | F35: =IF(VLOOKUP(#REF!,$B48:$D$1829,3,FALSE)="oui","férié","non férié") ->  | G35: =IF(VLOOKUP(#REF!,$B4:$D$1829,3,FALSE)="oui","férié","non férié") ->  | H35: =IF(VLOOKUP(#REF!,$B4:$D$1829,3,FALSE)="oui","férié","non férié") -> 
B36: 2021-02-02 | C36: s
B37: 2021-02-03 | C37: s
B38: 2021-02-04 | C38: s
B39: 2021-02-05 | C39: s
B40: 2021-02-06 | C40: fds
B41: 2021-02-07 | C41: fds
B42: 2021-02-08 | C42: s
B43: 2021-02-09 | C43: s
B44: 2021-02-10 | C44: s
B45: 2021-02-11 | C45: s
B46: 2021-02-12 | C46: s
B47: 2021-02-13 | C47: fds
B48: 2021-02-14 | C48: fds
B49: 2021-02-15 | C49: s
B50: 2021-02-16 | C50: s
B51: 2021-02-17 | C51: s
B52: 2021-02-18 | C52: s
B53: 2021-02-19 | C53: s
B54: 2021-02-20 | C54: fds
B55: 2021-02-21 | C55: fds
B56: 2021-02-22 | C56: s
B57: 2021-02-23 | C57: s
B58: 2021-02-24 | C58: s
B59: 2021-02-25 | C59: s
B60: 2021-02-26 | C60: s
B61: 2021-02-27 | C61: fds
B62: 2021-02-28 | C62: fds
B63: 2021-03-01 | C63: s
B64: 2021-03-02 | C64: s
B65: 2021-03-03 | C65: s
B66: 2021-03-04 | C66: s
B67: 2021-03-05 | C67: s
B68: 2021-03-06 | C68: fds
B69: 2021-03-07 | C69: fds
B70: 2021-03-08 | C70: s
B71: 2021-03-09 | C71: s
B72: 2021-03-10 | C72: s
B73: 2021-03-11 | C73: s
B74: 2021-03-12 | C74: s
B75: 2021-03-13 | C75: fds
B76: 2021-03-14 | C76: fds
B77: 2021-03-15 | C77: s
B78: 2021-03-16 | C78: s
B79: 2021-03-17 | C79: s
B80: 2021-03-18 | C80: s
B81: 2021-03-19 | C81: s
B82: 2021-03-20 | C82: fds
B83: 2021-03-21 | C83: fds
B84: 2021-03-22 | C84: s
B85: 2021-03-23 | C85: s
B86: 2021-03-24 | C86: s
B87: 2021-03-25 | C87: s
B88: 2021-03-26 | C88: s
B89: 2021-03-27 | C89: fds
B90: 2021-03-28 | C90: fds
B91: 2021-03-29 | C91: s
B92: 2021-03-30 | C92: s
B93: 2021-03-31 | C93: s
B94: 2021-04-01 | C94: s
B95: 2021-04-02 | C95: s | D95: Oui
B96: 2021-04-03 | C96: fds
B97: 2021-04-04 | C97: fds
B98: 2021-04-05 | C98: s | D98: Oui
B99: 2021-04-06 | C99: s
B100: 2021-04-07 | C100: s
B101: 2021-04-08 | C101: s
B102: 2021-04-09 | C102: s
B103: 2021-04-10 | C103: fds
B104: 2021-04-11 | C104: fds
B105: 2021-04-12 | C105: s
B106: 2021-04-13 | C106: s
B107: 2021-04-14 | C107: s
B108: 2021-04-15 | C108: s
B109: 2021-04-16 | C109: s
B110: 2021-04-17 | C110: fds
B111: 2021-04-18 | C111: fds
B112: 2021-04-19 | C112: s
B113: 2021-04-20 | C113: s
B114: 2021-04-21 | C114: s
B115: 2021-04-22 | C115: s
B116: 2021-04-23 | C116: s
B117: 2021-04-24 | C117: fds
B118: 2021-04-25 | C118: fds
B119: 2021-04-26 | C119: s
B120: 2021-04-27 | C120: s
B121: 2021-04-28 | C121: s
B122: 2021-04-29 | C122: s
B123: 2021-04-30 | C123: s
B124: 2021-05-01 | C124: fds
B125: 2021-05-02 | C125: fds
B126: 2021-05-03 | C126: s
B127: 2021-05-04 | C127: s
B128: 2021-05-05 | C128: s
B129: 2021-05-06 | C129: s
B130: 2021-05-07 | C130: s
B131: 2021-05-08 | C131: fds
B132: 2021-05-09 | C132: fds
B133: 2021-05-10 | C133: s
B134: 2021-05-11 | C134: s
B135: 2021-05-12 | C135: s
B136: 2021-05-13 | C136: s
B137: 2021-05-14 | C137: s
B138: 2021-05-15 | C138: fds
B139: 2021-05-16 | C139: fds
B140: 2021-05-17 | C140: s
B141: 2021-05-18 | C141: s
B142: 2021-05-19 | C142: s
B143: 2021-05-20 | C143: s
B144: 2021-05-21 | C144: s
B145: 2021-05-22 | C145: fds
B146: 2021-05-23 | C146: fds
B147: 2021-05-24 | C147: s | D147: Oui
B148: 2021-05-25 | C148: s
B149: 2021-05-26 | C149: s
B150: 2021-05-27 | C150: s
B151: 2021-05-28 | C151: s
B152: 2021-05-29 | C152: fds
B153: 2021-05-30 | C153: fds
B154: 2021-05-31 | C154: s
B155: 2021-06-01 | C155: s
B156: 2021-06-02 | C156: s
B157: 2021-06-03 | C157: s
B158: 2021-06-04 | C158: s
B159: 2021-06-05 | C159: fds
B160: 2021-06-06 | C160: fds
B161: 2021-06-07 | C161: s
B162: 2021-06-08 | C162: s
B163: 2021-06-09 | C163: s
B164: 2021-06-10 | C164: s
B165: 2021-06-11 | C165: s
B166: 2021-06-12 | C166: fds
B167: 2021-06-13 | C167: fds
B168: 2021-06-14 | C168: s
B169: 2021-06-15 | C169: s
B170: 2021-06-16 | C170: s
B171: 2021-06-17 | C171: s
B172: 2021-06-18 | C172: s
B173: 2021-06-19 | C173: fds
B174: 2021-06-20 | C174: fds
B175: 2021-06-21 | C175: s
B176: 2021-06-22 | C176: s
B177: 2021-06-23 | C177: s
B178: 2021-06-24 | C178: s | D178: Oui
B179: 2021-06-25 | C179: s
B180: 2021-06-26 | C180: fds
B181: 2021-06-27 | C181: fds
B182: 2021-06-28 | C182: s
B183: 2021-06-29 | C183: s
B184: 2021-06-30 | C184: s
B185: 2021-07-01 | C185: s | D185: Oui
B186: 2021-07-02 | C186: s
B187: 2021-07-03 | C187: fds
B188: 2021-07-04 | C188: fds
B189: 2021-07-05 | C189: s
B190: 2021-07-06 | C190: s
B191: 2021-07-07 | C191: s
B192: 2021-07-08 | C192: s
B193: 2021-07-09 | C193: s
B194: 2021-07-10 | C194: fds
B195: 2021-07-11 | C195: fds
B196: 2021-07-12 | C196: s
B197: 2021-07-13 | C197: s
B198: 2021-07-14 | C198: s
B199: 2021-07-15 | C199: s
B200: 2021-07-16 | C200: s
B201: 2021-07-17 | C201: fds
... 1628 more rows

Sheet TAUX (hidden)
B2: champs à modifier avec les nouveaux tarifs | C2: 2025
B4: Attente
B6: Semaine - jour/soir | C6: 28.75
B7: Semaine - nuit | C7: 35.5
B8: Fin semaine - jour/soir | C8: 31.75
B9: Fin semaine - nuit | C9: 38.5
B10: Fériés - jour/soir | C10: 40
B11: Fériés - nuit | C11: 48
B13: Base ailleurs qu'à Québec et Montréal
B15: Semaine - jour/soir | C15: 135
B16: Semaine - nuit | C16: 167
B17: Fin semaine - jour/soir | C17: 150
B18: Fin semaine - nuit | C18: 184
B19: Fériés - jour/soir | C19: 192
B20: Fériés - nuit | C20: 233
B22: Base Montréal et Québec
B24: Semaine - jour/soir | C24: 180
B25: Semaine - nuit | C25: 216
B26: Fin semaine - jour/soir | C26: 194
B27: Fin semaine - nuit | C27: 237
B28: Fériés - jour/soir | C28: 239
B29: Fériés - nuit | C29: 282
B31: Kilométrage
B32: Chemin public | C32: 1.75
B33: Chemin non public | C33: 3.2
B35: Divers frais
B36: Frais de garde | C36: 65.75
B37: Frais de visite | C37: 65.75
B38: Nettoyage supplémentaire | C38: 44.75
B39: Corps additionnel | C39: 122
B41: Repas | C41: Maximum | D41: incluant le pourboire | F41: Maximum sans les taxes
B42: Déjeuner | C42: 14.7 | F42: 12.75
B43: Dîner | C43: 20.2 | F43: 17.55
B44: Souper | C44: 30.5 | F44: 26.5
G46: Indemnité journalière
C47: Tarifs = indemnités journalières | G47: 0.5
B48: Nuitées | C48: Basse | D48: Haute | G48: Basse | H48: Haute
C49: basse saison | D49: haute saison | G49: basse saison | H49: haute saison
B50: Montréal | C50: 218 | D50: 234 | F50: Montréal | G50: =ROUND(C50/2,0) -> 109 | H50: =ROUND(D50/2,0) -> 117
B51: Québec | C51: 192 | D51: 192 | F51: Québec | G51: 96 | H51: 96
B52: Laval | C52: 187 | D52: 197 | F52: Laval | G52: 94 | H52: 99
B53: Gatineau | C53: 187 | D53: 197 | F53: Gatineau | G53: 94 | H53: 99
B54: Longueuil | C54: 187 | D54: 197 | F54: Longueuil | G54: 94 | H54: 99
B55: Lac-Beauport | C55: 187 | D55: 197 | F55: Lac-Beauport | G55: 94 | H55: 99
B56: Lac-Delage | C56: 187 | D56: 197 | F56: Lac-Delage | G56: 94 | H56: 99
B57: Rimouski | C57: 163 | D57: 168 | F57: Rimouski | G57: 82 | H57: 84
B58: Ailleurs | C58: 163 | D58: 168 | F58: Ailleurs | G58: =ROUND(C58/2,0) -> 82 | H58: =ROUND(D58/2,0) -> 84
C59: Tarifs excluant la taxe sur l'hébergement
B61: TPS | C61: =ROUND(D61,5) -> 0.05 | D61: 0.05
B62: TVQ | C62: =ROUND(D62,5) -> 0.09975 | D62: 0.09975
B63: total à titre indicatif seulement | C63: =SUM(C61:C62) -> 0.14975 | D63: =D61+D62 -> 0.14975
B66: Lieux de transport
C67: Installations du transporteur
C68: Morgue Montréal
C69: Morgue Québec
C70: Hôpital
C71: Résidence privée
C72: CHSLD / centre jeunesse
C73: Prison / pénitencier
C74: Autre
B78: Liste pour stationnement
C79: oui
C80: non
C81: ne sait pas

Sheet Calculs repas (hidden)
E2: REPAS
D5: Déjeuner | F5: Dîner | H5: Souper
D7: =TAUX!F42 -> 12.75 | F7: =TAUX!F43 -> 17.55 | H7: =TAUX!F44 -> 26.5
B8: TPS | C8: =ROUND(D7*TAUX!$C$61,2) -> 0.64 | E8: =F7*TAUX!$C$61 -> 0.8775 | G8: =ROUND(H7*TAUX!$C$61,3) -> 1.325
B9: TVQ | C9: =ROUND(D7*TAUX!$C$62,2) -> 1.27 | E9: =F7*TAUX!$C$62 -> 1.7506125 | G9: =ROUND(H7*TAUX!$C$62,2) -> 2.64
B10: total taxes | D10: =ROUND(C8+C9,10) -> 1.91 | F10: =E8+E9 -> 2.6281125 | H10: =ROUNDUP(G8+G9,2) -> 3.97
B11: pourboire
B12: maximum admissible | D12: =SUM(D7:D11) -> 14.66 | F12: =SUM(F7:F11) -> 20.1781125 | H12: =ROUND(SUM(H7:H11),2) -> 30.47
D15: J'AI JOUÉ AVEC LES ARRONDIS POUR QUE LES TOUS LES MONTANTS S'ADDITIONNENT BIEN
B20: ATTENTION:
A22: NE RIEN MODIFIER DANS CE TABLEAU.
A23: TOUS LES CALCULS SONT AUTOMATIQUES EN FONCTION DES DONNÉES INSCRITES DANS L'ONGLET TAUX.
A24: SI CHANGEMENT DE MONTANT ADMISSIBLE OU DES TAUX DE TPS OU DE TVQ, FAIRE LES MODIFICATIONS DANS ONGLET TAUX
